Workbook

Sheet Kalender
A1: Kalender | L1: 2025
C2: =NETWORKDAYS(A4,EOMONTH(A4,0),GFT) -> 21 | D2: Arbeitstage | I2: =NETWORKDAYS(G4,EOMONTH(G4,0),GFT) -> 20 | J2: Arbeitstage | O2: =NETWORKDAYS(M4,EOMONTH(M4,0),GFT) -> 21 | P2: Arbeitstage | U2: =NETWORKDAYS(S4,EOMONTH(S4,0),GFT) -> 20 | V2: Arbeitstage | AA2: =NETWORKDAYS(Y4,EOMONTH(Y4,0),GFT) -> 21 | AB2: Arbeitstage | AG2: =NETWORKDAYS(AE4,EOMONTH(AE4,0),GFT) -> 20 | AH2: Arbeitstage | AM2: =NETWORKDAYS(AK4,EOMONTH(AK4,0),GFT) -> 23 | AN2: Arbeitstage | AS2: =NETWORKDAYS(AQ4,EOMONTH(AQ4,0),GFT) -> 20 | AT2: Arbeitstage | AY2: =NETWORKDAYS(AW4,EOMONTH(AW4,0),GFT) -> 22 | AZ2: Arbeitstage | BE2: =NETWORKDAYS(BC4,EOMONTH(BC4,0),GFT) -> 23 | BF2: Arbeitstage | BK2: =NETWORKDAYS(BI4,EOMONTH(BI4,0),GFT) -> 20 | BL2: Arbeitstage | BQ2: =NETWORKDAYS(BO4,EOMONTH(BO4,0),GFT) -> 21 | BR2: Arbeitstage
A3: Januar | G3: Februar | M3: März | S3: April | Y3: Mai | AE3: Juni | AK3: Juli | AQ3: August | AW3: September | BC3: Oktober | BI3: November | BO3: Dezember
A4: =IFERROR((ROW()-3&"."&A$3&"."&$L$1)*1,"") -> 2025-01-01 | B4: =IFERROR((ROW()-3&"."&A$3&"."&$L$1)*1,"") -> 45658 | C4: =A4 -> 2025-01-01 | D4: =IFERROR(VLOOKUP(B4,Feiertage!$A$3:$B$29,2,FALSE),"") -> Neujahr | E4: =IFERROR(VLOOKUP(B4,Mondphasen!$G$23:$H$36,2,FALSE),"") ->  | F4: =IFERROR(WEEKNUM(A4,21),"") -> 1 | G4: =IFERROR((ROW()-3&"."&G$3&"."&$L$1)*1,"") -> 2025-02-01 | H4: =IFERROR((ROW()-3&"."&G$3&"."&$L$1)*1,"") -> 45689 | I4: =G4 -> 2025-02-01 | J4: =IFERROR(VLOOKUP(H4,Feiertage!$A$3:$B$29,2,FALSE),"") ->  | K4: =IFERROR(VLOOKUP(H4,Mondphasen!$G$23:$H$36,2,FALSE),"") ->  | L4: =IFERROR(WEEKNUM(G4,21),"") -> 5 | M4: =IFERROR((ROW()-3&"."&M$3&"."&$L$1)*1,"") -> 2025-03-01 | N4: =IFERROR((ROW()-3&"."&M$3&"."&$L$1)*1,"") -> 45717 | O4: =M4 -> 2025-03-01 | P4: =IFERROR(VLOOKUP(N4,Feiertage!$A$3:$B$29,2,FALSE),"") ->  | Q4: =IFERROR(VLOOKUP(N4,Mondphasen!$G$23:$H$36,2,FALSE),"") ->  | R4: =IFERROR(WEEKNUM(M4,21),"") -> 9 | S4: =IFERROR((ROW()-3&"."&S$3&"."&$L$1)*1,"") -> 2025-04-01 | T4: =IFERROR((ROW()-3&"."&S$3&"."&$L$1)*1,"") -> 45748 | U4: =S4 -> 2025-04-01 | V4: =IFERROR(VLOOKUP(T4,Feiertage!$A$3:$B$29,2,FALSE),"") ->  | W4: =IFERROR(VLOOKUP(T4,Mondphasen!$G$23:$H$36,2,FALSE),"") ->  | X4: =IFERROR(WEEKNUM(S4,21),"") -> 14 | Y4: =IFERROR((ROW()-3&"."&Y$3&"."&$L$1)*1,"") -> 2025-05-01 | Z4: =IFERROR((ROW()-3&"."&Y$3&"."&$L$1)*1,"") -> 45778 | AA4: =Y4 -> 2025-05-01 | AB4: =IFERROR(VLOOKUP(Z4,Feiertage!$A$3:$B$29,2,FALSE),"") -> Tag der Arbeit | AC4: =IFERROR(VLOOKUP(Z4,Mondphasen!$G$23:$H$36,2,FALSE),"") ->  | AD4: =IFERROR(WEEKNUM(Y4,21),"") -> 18 | AE4: =IFERROR((ROW()-3&"."&AE$3&"."&$L$1)*1,"") -> 2025-06-01 | AF4: =IFERROR((ROW()-3&"."&AE$3&"."&$L$1)*1,"") -> 45809 | AG4: =AE4 -> 2025-06-01 | AH4: =IFERROR(VLOOKUP(AF4,Feiertage!$A$3:$B$29,2,FALSE),"") ->  | AI4: =IFERROR(VLOOKUP(AF4,Mondphasen!$G$23:$H$36,2,FALSE),"") ->  | AJ4: =IFERROR(WEEKNUM(AE4,21),"") -> 22 | AK4: =IFERROR((ROW()-3&"."&AK$3&"."&$L$1)*1,"") -> 2025-07-01 | AL4: =IFERROR((ROW()-3&"."&AK$3&"."&$L$1)*1,"") -> 45839 | AM4: =AK4 -> 2025-07-01 | AN4: =IFERROR(VLOOKUP(AL4,Feiertage!$A$3:$B$29,2,FALSE),"") ->  | AO4: =IFERROR(VLOOKUP(AL4,Mondphasen!$G$23:$H$36,2,FALSE),"") ->  | AP4: =IFERROR(WEEKNUM(AK4,21),"") -> 27 | AQ4: =IFERROR((ROW()-3&"."&AQ$3&"."&$L$1)*1,"") -> 2025-08-01 | AR4: =IFERROR((ROW()-3&"."&AQ$3&"."&$L$1)*1,"") -> 45870 | AS4: =AQ4 -> 2025-08-01 | AT4: =IFERROR(VLOOKUP(AR4,Feiertage!$A$3:$B$29,2,FALSE),"") -> National-Feiertag CH | AU4: =IFERROR(VLOOKUP(AR4,Mondphasen!$G$23:$H$36,2,FALSE),"") ->  | AV4: =IFERROR(WEEKNUM(AQ4,21),"") -> 31 | AW4: =IFERROR((ROW()-3&"."&AW$3&"."&$L$1)*1,"") -> 2025-09-01 | AX4: =IFERROR((ROW()-3&"."&AW$3&"."&$L$1)*1,"") -> 45901 | AY4: =AW4 -> 2025-09-01 | AZ4: =IFERROR(VLOOKUP(AX4,Feiertage!$A$3:$B$29,2,FALSE),"") ->  | BA4: =IFERROR(VLOOKUP(AX4,Mondphasen!$G$23:$H$36,2,FALSE),"") ->  | BB4: =IFERROR(WEEKNUM(AW4,21),"") -> 36 | BC4: =IFERROR((ROW()-3&"."&BC$3&"."&$L$1)*1,"") -> 2025-10-01 | BD4: =IFERROR((ROW()-3&"."&BC$3&"."&$L$1)*1,"") -> 45931 | BE4: =BC4 -> 2025-10-01 | BF4: =IFERROR(VLOOKUP(BD4,Feiertage!$A$3:$B$29,2,FALSE),"") ->  | BG4: =IFERROR(VLOOKUP(BD4,Mondphasen!$G$23:$H$36,2,FALSE),"") ->  | BH4: =IFERROR(WEEKNUM(BC4,21),"") -> 40 | BI4: =IFERROR((ROW()-3&"."&BI$3&"."&$L$1)*1,"") -> 2025-11-01 | BJ4: =IFERROR((ROW()-3&"."&BI$3&"."&$L$1)*1,"") -> 45962 | BK4: =BI4 -> 2025-11-01 | BL4: =IFERROR(VLOOKUP(BJ4,Feiertage!$A$3:$B$29,2,FALSE),"") -> Allerheiligen | BM4: =IFERROR(VLOOKUP(BJ4,Mondphasen!$G$23:$H$36,2,FALSE),"") ->  | BN4: =IFERROR(WEEKNUM(BI4,21),"") -> 44 | BO4: =IFERROR((ROW()-3&"."&BO$3&"."&$L$1)*1,"") -> 2025-12-01 | BP4: =IFERROR((ROW()-3&"."&BO$3&"."&$L$1)*1,"") -> 45992 | BQ4: =BO4 -> 2025-12-01 | BR4: =IFERROR(VLOOKUP(BP4,Feiertage!$A$3:$B$29,2,FALSE),"") ->  | BS4: =IFERROR(VLOOKUP(BP4,Mondphasen!$G$23:$H$36,2,FALSE),"") ->  | BT4: =IFERROR(WEEKNUM(BO4,21),"") -> 49
A5: 2025-01-02 | B5: 45659 | C5: =A5 -> 2025-01-02 | D5: =IFERROR(VLOOKUP(B5,Feiertage!$A$3:$B$29,2,FALSE),"") -> Berchtoldstag | E5: =IFERROR(VLOOKUP(B5,Mondphasen!$G$23:$H$36,2,FALSE),"") ->  | F5: =IFERROR(WEEKNUM(A5,21),"") -> 1 | G5: 2025-02-02 | H5: 45690 | I5: =G5 -> 2025-02-02 | J5: =IFERROR(VLOOKUP(H5,Feiertage!$A$3:$B$29,2,FALSE),"") ->  | K5: =IFERROR(VLOOKUP(H5,Mondphasen!$G$23:$H$36,2,FALSE),"") ->  | L5: 5 | M5: 2025-03-02 | N5: 45718 | O5: =M5 -> 2025-03-02 | P5: =IFERROR(VLOOKUP(N5,Feiertage!$A$3:$B$29,2,FALSE),"") ->  | Q5: =IFERROR(VLOOKUP(N5,Mondphasen!$G$23:$H$36,2,FALSE),"") ->  | R5: =IFERROR(WEEKNUM(M5,21),"") -> 9 | S5: 2025-04-02 | T5: 45749 | U5: =S5 -> 2025-04-02 | V5: =IFERROR(VLOOKUP(T5,Feiertage!$A$3:$B$29,2,FALSE),"") ->  | W5: =IFERROR(VLOOKUP(T5,Mondphasen!$G$23:$H$36,2,FALSE),"") ->  | X5: 14 | Y5: 2025-05-02 | Z5: 45779 | AA5: =Y5 -> 2025-05-02 | AB5: =IFERROR(VLOOKUP(Z5,Feiertage!$A$3:$B$29,2,FALSE),"") ->  | AC5: =IFERROR(VLOOKUP(Z5,Mondphasen!$G$23:$H$36,2,FALSE),"") ->  | AD5: 18 | AE5: 2025-06-02 | AF5: 45810 | AG5: =AE5 -> 2025-06-02 | AH5: =IFERROR(VLOOKUP(AF5,Feiertage!$A$3:$B$29,2,FALSE),"") ->  | AI5: =IFERROR(VLOOKUP(AF5,Mondphasen!$G$23:$H$36,2,FALSE),"") ->  | AJ5: 23 | AK5: 2025-07-02 | AL5: 45840 | AM5: =AK5 -> 2025-07-02 | AN5: =IFERROR(VLOOKUP(AL5,Feiertage!$A$3:$B$29,2,FALSE),"") ->  | AO5: =IFERROR(VLOOKUP(AL5,Mondphasen!$G$23:$H$36,2,FALSE),"") ->  | AP5: 27 | AQ5: 2025-08-02 | AR5: 45871 | AS5: =AQ5 -> 2025-08-02 | AT5: =IFERROR(VLOOKUP(AR5,Feiertage!$A$3:$B$29,2,FALSE),"") ->  | AU5: =IFERROR(VLOOKUP(AR5,Mondphasen!$G$23:$H$36,2,FALSE),"") ->  | AV5: 31 | AW5: 2025-09-02 | AX5: 45902 | AY5: =AW5 -> 2025-09-02 | AZ5: =IFERROR(VLOOKUP(AX5,Feiertage!$A$3:$B$29,2,FALSE),"") ->  | BA5: =IFERROR(VLOOKUP(AX5,Mondphasen!$G$23:$H$36,2,FALSE),"") ->  | BB5: 36 | BC5: 2025-10-02 | BD5: 45932 | BE5: =BC5 -> 2025-10-02 | BF5: =IFERROR(VLOOKUP(BD5,Feiertage!$A$3:$B$29,2,FALSE),"") ->  | BG5: =IFERROR(VLOOKUP(BD5,Mondphasen!$G$23:$H$36,2,FALSE),"") ->  | BH5: 40 | BI5: 2025-11-02 | BJ5: 45963 | BK5: =BI5 -> 2025-11-02 | BL5: =IFERROR(VLOOKUP(BJ5,Feiertage!$A$3:$B$29,2,FALSE),"") ->  | BM5: =IFERROR(VLOOKUP(BJ5,Mondphasen!$G$23:$H$36,2,FALSE),"") ->  | BN5: 44 | BO5: 2025-12-02 | BP5: 45993 | BQ5: =BO5 -> 2025-12-02 | BR5: =IFERROR(VLOOKUP(BP5,Feiertage!$A$3:$B$29,2,FALSE),"") ->  | BS5: =IFERROR(VLOOKUP(BP5,Mondphasen!$G$23:$H$36,2,FALSE),"") ->  | BT5: =IFERROR(WEEKNUM(BO5,21),"") -> 49
A6: 2025-01-03 | B6: 45660 | C6: 2025-01-03 | D6: =IFERROR(VLOOKUP(B6,Feiertage!$A$3:$B$29,2,FALSE),"") ->  | E6: =IFERROR(VLOOKUP(B6,Mondphasen!$G$23:$H$36,2,FALSE),"") ->  | F6: 1 | G6: 2025-02-03 | H6: 45691 | I6: 2025-02-03 | J6: =IFERROR(VLOOKUP(H6,Feiertage!$A$3:$B$29,2,FALSE),"") ->  | K6: =IFERROR(VLOOKUP(H6,Mondphasen!$G$23:$H$36,2,FALSE),"") ->  | L6: 6 | M6: 2025-03-03 | N6: 45719 | O6: 2025-03-03 | P6: =IFERROR(VLOOKUP(N6,Feiertage!$A$3:$B$29,2,FALSE),"") -> Fasnacht-Montag | Q6: =IFERROR(VLOOKUP(N6,Mondphasen!$G$23:$H$36,2,FALSE),"") ->  | R6: 10 | S6: 2025-04-03 | T6: 45750 | U6: 2025-04-03 | V6: =IFERROR(VLOOKUP(T6,Feiertage!$A$3:$B$29,2,FALSE),"") ->  | W6: =IFERROR(VLOOKUP(T6,Mondphasen!$G$23:$H$36,2,FALSE),"") ->  | X6: 14 | Y6: 2025-05-03 | Z6: 45780 | AA6: 2025-05-03 | AB6: =IFERROR(VLOOKUP(Z6,Feiertage!$A$3:$B$29,2,FALSE),"") ->  | AC6: =IFERROR(VLOOKUP(Z6,Mondphasen!$G$23:$H$36,2,FALSE),"") ->  | AD6: 18 | AE6: 2025-06-03 | AF6: 45811 | AG6: 2025-06-03 | AH6: =IFERROR(VLOOKUP(AF6,Feiertage!$A$3:$B$29,2,FALSE),"") ->  | AI6: =IFERROR(VLOOKUP(AF6,Mondphasen!$G$23:$H$36,2,FALSE),"") ->  | AJ6: 23 | AK6: 2025-07-03 | AL6: 45841 | AM6: 2025-07-03 | AN6: =IFERROR(VLOOKUP(AL6,Feiertage!$A$3:$B$29,2,FALSE),"") ->  | AO6: =IFERROR(VLOOKUP(AL6,Mondphasen!$G$23:$H$36,2,FALSE),"") ->  | AP6: 27 | AQ6: 2025-08-03 | AR6: 45872 | AS6: 2025-08-03 | AT6: =IFERROR(VLOOKUP(AR6,Feiertage!$A$3:$B$29,2,FALSE),"") ->  | AU6: =IFERROR(VLOOKUP(AR6,Mondphasen!$G$23:$H$36,2,FALSE),"") ->  | AV6: 31 | AW6: 2025-09-03 | AX6: 45903 | AY6: 2025-09-03 | AZ6: =IFERROR(VLOOKUP(AX6,Feiertage!$A$3:$B$29,2,FALSE),"") ->  | BA6: =IFERROR(VLOOKUP(AX6,Mondphasen!$G$23:$H$36,2,FALSE),"") ->  | BB6: 36 | BC6: 2025-10-03 | BD6: 45933 | BE6: 2025-10-03 | BF6: =IFERROR(VLOOKUP(BD6,Feiertage!$A$3:$B$29,2,FALSE),"") ->  | BG6: =IFERROR(VLOOKUP(BD6,Mondphasen!$G$23:$H$36,2,FALSE),"") ->  | BH6: 40 | BI6: 2025-11-03 | BJ6: 45964 | BK6: 2025-11-03 | BL6: =IFERROR(VLOOKUP(BJ6,Feiertage!$A$3:$B$29,2,FALSE),"") ->  | BM6: =IFERROR(VLOOKUP(BJ6,Mondphasen!$G$23:$H$36,2,FALSE),"") ->  | BN6: 45 | BO6: 2025-12-03 | BP6: 45994 | BQ6: 2025-12-03 | BR6: =IFERROR(VLOOKUP(BP6,Feiertage!$A$3:$B$29,2,FALSE),"") ->  | BS6: =IFERROR(VLOOKUP(BP6,Mondphasen!$G$23:$H$36,2,FALSE),"") ->  | BT6: 49
A7: 2025-01-04 | B7: 45661 | C7: 2025-01-04 | D7: =IFERROR(VLOOKUP(B7,Feiertage!$A$3:$B$29,2,FALSE),"") ->  | E7: =IFERROR(VLOOKUP(B7,Mondphasen!$G$23:$H$36,2,FALSE),"") ->  | F7: 1 | G7: 2025-02-04 | H7: 45692 | I7: 2025-02-04 | J7: =IFERROR(VLOOKUP(H7,Feiertage!$A$3:$B$29,2,FALSE),"") ->  | K7: =IFERROR(VLOOKUP(H7,Mondphasen!$G$23:$H$36,2,FALSE),"") ->  | L7: 6 | M7: 2025-03-04 | N7: 45720 | O7: 2025-03-04 | P7: =IFERROR(VLOOKUP(N7,Feiertage!$A$3:$B$29,2,FALSE),"") -> Fasnacht-Dienstag | Q7: =IFERROR(VLOOKUP(N7,Mondphasen!$G$23:$H$36,2,FALSE),"") ->  | R7: 10 | S7: 2025-04-04 | T7: 45751 | U7: 2025-04-04 | V7: =IFERROR(VLOOKUP(T7,Feiertage!$A$3:$B$29,2,FALSE),"") ->  | W7: =IFERROR(VLOOKUP(T7,Mondphasen!$G$23:$H$36,2,FALSE),"") ->  | X7: 14 | Y7: 2025-05-04 | Z7: 45781 | AA7: 2025-05-04 | AB7: =IFERROR(VLOOKUP(Z7,Feiertage!$A$3:$B$29,2,FALSE),"") ->  | AC7: =IFERROR(VLOOKUP(Z7,Mondphasen!$G$23:$H$36,2,FALSE),"") ->  | AD7: 18 | AE7: 2025-06-04 | AF7: 45812 | AG7: 2025-06-04 | AH7: =IFERROR(VLOOKUP(AF7,Feiertage!$A$3:$B$29,2,FALSE),"") ->  | AI7: =IFERROR(VLOOKUP(AF7,Mondphasen!$G$23:$H$36,2,FALSE),"") ->  | AJ7: 23 | AK7: 2025-07-04 | AL7: 45842 | AM7: 2025-07-04 | AN7: =IFERROR(VLOOKUP(AL7,Feiertage!$A$3:$B$29,2,FALSE),"") ->  | AO7: =IFERROR(VLOOKUP(AL7,Mondphasen!$G$23:$H$36,2,FALSE),"") ->  | AP7: 27 | AQ7: 2025-08-04 | AR7: 45873 | AS7: 2025-08-04 | AT7: =IFERROR(VLOOKUP(AR7,Feiertage!$A$3:$B$29,2,FALSE),"") ->  | AU7: =IFERROR(VLOOKUP(AR7,Mondphasen!$G$23:$H$36,2,FALSE),"") ->  | AV7: 32 | AW7: 2025-09-04 | AX7: 45904 | AY7: 2025-09-04 | AZ7: =IFERROR(VLOOKUP(AX7,Feiertage!$A$3:$B$29,2,FALSE),"") ->  | BA7: =IFERROR(VLOOKUP(AX7,Mondphasen!$G$23:$H$36,2,FALSE),"") ->  | BB7: 36 | BC7: 2025-10-04 | BD7: 45934 | BE7: 2025-10-04 | BF7: =IFERROR(VLOOKUP(BD7,Feiertage!$A$3:$B$29,2,FALSE),"") ->  | BG7: =IFERROR(VLOOKUP(BD7,Mondphasen!$G$23:$H$36,2,FALSE),"") ->  | BH7: 40 | BI7: 2025-11-04 | BJ7: 45965 | BK7: 2025-11-04 | BL7: =IFERROR(VLOOKUP(BJ7,Feiertage!$A$3:$B$29,2,FALSE),"") ->  | BM7: =IFERROR(VLOOKUP(BJ7,Mondphasen!$G$23:$H$36,2,FALSE),"") ->  | BN7: 45 | BO7: 2025-12-04 | BP7: 45995 | BQ7: 2025-12-04 | BR7: =IFERROR(VLOOKUP(BP7,Feiertage!$A$3:$B$29,2,FALSE),"") ->  | BS7: =IFERROR(VLOOKUP(BP7,Mondphasen!$G$23:$H$36,2,FALSE),"") ->  | BT7: 49
A8: 2025-01-05 | B8: 45662 | C8: 2025-01-05 | D8: =IFERROR(VLOOKUP(B8,Feiertage!$A$3:$B$29,2,FALSE),"") ->  | E8: =IFERROR(VLOOKUP(B8,Mondphasen!$G$23:$H$36,2,FALSE),"") ->  | F8: 1 | G8: 2025-02-05 | H8: 45693 | I8: 2025-02-05 | J8: =IFERROR(VLOOKUP(H8,Feiertage!$A$3:$B$29,2,FALSE),"") ->  | K8: =IFERROR(VLOOKUP(H8,Mondphasen!$G$23:$H$36,2,FALSE),"") ->  | L8: 6 | M8: 2025-03-05 | N8: 45721 | O8: 2025-03-05 | P8: =IFERROR(VLOOKUP(N8,Feiertage!$A$3:$B$29,2,FALSE),"") -> Aschermittwoch | Q8: =IFERROR(VLOOKUP(N8,Mondphasen!$G$23:$H$36,2,FALSE),"") ->  | R8: 10 | S8: 2025-04-05 | T8: 45752 | U8: 2025-04-05 | V8: =IFERROR(VLOOKUP(T8,Feiertage!$A$3:$B$29,2,FALSE),"") ->  | W8: =IFERROR(VLOOKUP(T8,Mondphasen!$G$23:$H$36,2,FALSE),"") ->  | X8: 14 | Y8: 2025-05-05 | Z8: 45782 | AA8: 2025-05-05 | AB8: =IFERROR(VLOOKUP(Z8,Feiertage!$A$3:$B$29,2,FALSE),"") ->  | AC8: =IFERROR(VLOOKUP(Z8,Mondphasen!$G$23:$H$36,2,FALSE),"") ->  | AD8: 19 | AE8: 2025-06-05 | AF8: 45813 | AG8: 2025-06-05 | AH8: =IFERROR(VLOOKUP(AF8,Feiertage!$A$3:$B$29,2,FALSE),"") ->  | AI8: =IFERROR(VLOOKUP(AF8,Mondphasen!$G$23:$H$36,2,FALSE),"") ->  | AJ8: 23 | AK8: 2025-07-05 | AL8: 45843 | AM8: 2025-07-05 | AN8: =IFERROR(VLOOKUP(AL8,Feiertage!$A$3:$B$29,2,FALSE),"") ->  | AO8: =IFERROR(VLOOKUP(AL8,Mondphasen!$G$23:$H$36,2,FALSE),"") ->  | AP8: 27 | AQ8: 2025-08-05 | AR8: 45874 | AS8: 2025-08-05 | AT8: =IFERROR(VLOOKUP(AR8,Feiertage!$A$3:$B$29,2,FALSE),"") ->  | AU8: =IFERROR(VLOOKUP(AR8,Mondphasen!$G$23:$H$36,2,FALSE),"") ->  | AV8: 32 | AW8: 2025-09-05 | AX8: 45905 | AY8: 2025-09-05 | AZ8: =IFERROR(VLOOKUP(AX8,Feiertage!$A$3:$B$29,2,FALSE),"") ->  | BA8: =IFERROR(VLOOKUP(AX8,Mondphasen!$G$23:$H$36,2,FALSE),"") ->  | BB8: 36 | BC8: 2025-10-05 | BD8: 45935 | BE8: 2025-10-05 | BF8: =IFERROR(VLOOKUP(BD8,Feiertage!$A$3:$B$29,2,FALSE),"") ->  | BG8: =IFERROR(VLOOKUP(BD8,Mondphasen!$G$23:$H$36,2,FALSE),"") ->  | BH8: 40 | BI8: 2025-11-05 | BJ8: 45966 | BK8: 2025-11-05 | BL8: =IFERROR(VLOOKUP(BJ8,Feiertage!$A$3:$B$29,2,FALSE),"") ->  | BM8: =IFERROR(VLOOKUP(BJ8,Mondphasen!$G$23:$H$36,2,FALSE),"") -> l | BN8: 45 | BO8: 2025-12-05 | BP8: 45996 | BQ8: 2025-12-05 | BR8: =IFERROR(VLOOKUP(BP8,Feiertage!$A$3:$B$29,2,FALSE),"") ->  | BS8: =IFERROR(VLOOKUP(BP8,Mondphasen!$G$23:$H$36,2,FALSE),"") -> l | BT8: 49
A9: 2025-01-06 | B9: 45663 | C9: 2025-01-06 | D9: =IFERROR(VLOOKUP(B9,Feiertage!$A$3:$B$29,2,FALSE),"") -> Heilige drei Könige | E9: =IFERROR(VLOOKUP(B9,Mondphasen!$G$23:$H$36,2,FALSE),"") ->  | F9: 2 | G9: 2025-02-06 | H9: 45694 | I9: 2025-02-06 | J9: =IFERROR(VLOOKUP(H9,Feiertage!$A$3:$B$29,2,FALSE),"") ->  | K9: =IFERROR(VLOOKUP(H9,Mondphasen!$G$23:$H$36,2,FALSE),"") ->  | L9: 6 | M9: 2025-03-06 | N9: 45722 | O9: 2025-03-06 | P9: =IFERROR(VLOOKUP(N9,Feiertage!$A$3:$B$29,2,FALSE),"") ->  | Q9: =IFERROR(VLOOKUP(N9,Mondphasen!$G$23:$H$36,2,FALSE),"") ->  | R9: 10 | S9: 2025-04-06 | T9: 45753 | U9: 2025-04-06 | V9: =IFERROR(VLOOKUP(T9,Feiertage!$A$3:$B$29,2,FALSE),"") ->  | W9: =IFERROR(VLOOKUP(T9,Mondphasen!$G$23:$H$36,2,FALSE),"") ->  | X9: 14 | Y9: 2025-05-06 | Z9: 45783 | AA9: 2025-05-06 | AB9: =IFERROR(VLOOKUP(Z9,Feiertage!$A$3:$B$29,2,FALSE),"") ->  | AC9: =IFERROR(VLOOKUP(Z9,Mondphasen!$G$23:$H$36,2,FALSE),"") ->  | AD9: 19 | AE9: 2025-06-06 | AF9: 45814 | AG9: 2025-06-06 | AH9: =IFERROR(VLOOKUP(AF9,Feiertage!$A$3:$B$29,2,FALSE),"") ->  | AI9: =IFERROR(VLOOKUP(AF9,Mondphasen!$G$23:$H$36,2,FALSE),"") ->  | AJ9: 23 | AK9: 2025-07-06 | AL9: 45844 | AM9: 2025-07-06 | AN9: =IFERROR(VLOOKUP(AL9,Feiertage!$A$3:$B$29,2,FALSE),"") ->  | AO9: =IFERROR(VLOOKUP(AL9,Mondphasen!$G$23:$H$36,2,FALSE),"") ->  | AP9: 27 | AQ9: 2025-08-06 | AR9: 45875 | AS9: 2025-08-06 | AT9: =IFERROR(VLOOKUP(AR9,Feiertage!$A$3:$B$29,2,FALSE),"") ->  | AU9: =IFERROR(VLOOKUP(AR9,Mondphasen!$G$23:$H$36,2,FALSE),"") ->  | AV9: 32 | AW9: 2025-09-06 | AX9: 45906 | AY9: 2025-09-06 | AZ9: =IFERROR(VLOOKUP(AX9,Feiertage!$A$3:$B$29,2,FALSE),"") ->  | BA9: =IFERROR(VLOOKUP(AX9,Mondphasen!$G$23:$H$36,2,FALSE),"") ->  | BB9: 36 | BC9: 2025-10-06 | BD9: 45936 | BE9: 2025-10-06 | BF9: =IFERROR(VLOOKUP(BD9,Feiertage!$A$3:$B$29,2,FALSE),"") ->  | BG9: =IFERROR(VLOOKUP(BD9,Mondphasen!$G$23:$H$36,2,FALSE),"") ->  | BH9: 41 | BI9: 2025-11-06 | BJ9: 45967 | BK9: 2025-11-06 | BL9: =IFERROR(VLOOKUP(BJ9,Feiertage!$A$3:$B$29,2,FALSE),"") ->  | BM9: =IFERROR(VLOOKUP(BJ9,Mondphasen!$G$23:$H$36,2,FALSE),"") ->  | BN9: 45 | BO9: 2025-12-06 | BP9: 45997 | BQ9: 2025-12-06 | BR9: =IFERROR(VLOOKUP(BP9,Feiertage!$A$3:$B$29,2,FALSE),"") -> Samichlaus | BS9: =IFERROR(VLOOKUP(BP9,Mondphasen!$G$23:$H$36,2,FALSE),"") ->  | BT9: 49
A10: 2025-01-07 | B10: 45664 | C10: 2025-01-07 | D10: =IFERROR(VLOOKUP(B10,Feiertage!$A$3:$B$29,2,FALSE),"") ->  | E10: =IFERROR(VLOOKUP(B10,Mondphasen!$G$23:$H$36,2,FALSE),"") ->  | F10: 2 | G10: 2025-02-07 | H10: 45695 | I10: 2025-02-07 | J10: =IFERROR(VLOOKUP(H10,Feiertage!$A$3:$B$29,2,FALSE),"") ->  | K10: =IFERROR(VLOOKUP(H10,Mondphasen!$G$23:$H$36,2,FALSE),"") ->  | L10: 6 | M10: 2025-03-07 | N10: 45723 | O10: 2025-03-07 | P10: =IFERROR(VLOOKUP(N10,Feiertage!$A$3:$B$29,2,FALSE),"") ->  | Q10: =IFERROR(VLOOKUP(N10,Mondphasen!$G$23:$H$36,2,FALSE),"") ->  | R10: 10 | S10: 2025-04-07 | T10: 45754 | U10: 2025-04-07 | V10: =IFERROR(VLOOKUP(T10,Feiertage!$A$3:$B$29,2,FALSE),"") ->  | W10: =IFERROR(VLOOKUP(T10,Mondphasen!$G$23:$H$36,2,FALSE),"") ->  | X10: 15 | Y10: 2025-05-07 | Z10: 45784 | AA10: 2025-05-07 | AB10: =IFERROR(VLOOKUP(Z10,Feiertage!$A$3:$B$29,2,FALSE),"") ->  | AC10: =IFERROR(VLOOKUP(Z10,Mondphasen!$G$23:$H$36,2,FALSE),"") ->  | AD10: 19 | AE10: 2025-06-07 | AF10: 45815 | AG10: 2025-06-07 | AH10: =IFERROR(VLOOKUP(AF10,Feiertage!$A$3:$B$29,2,FALSE),"") ->  | AI10: =IFERROR(VLOOKUP(AF10,Mondphasen!$G$23:$H$36,2,FALSE),"") ->  | AJ10: 23 | AK10: 2025-07-07 | AL10: 45845 | AM10: 2025-07-07 | AN10: =IFERROR(VLOOKUP(AL10,Feiertage!$A$3:$B$29,2,FALSE),"") ->  | AO10: =IFERROR(VLOOKUP(AL10,Mondphasen!$G$23:$H$36,2,FALSE),"") ->  | AP10: 28 | AQ10: 2025-08-07 | AR10: 45876 | AS10: 2025-08-07 | AT10: =IFERROR(VLOOKUP(AR10,Feiertage!$A$3:$B$29,2,FALSE),"") ->  | AU10: =IFERROR(VLOOKUP(AR10,Mondphasen!$G$23:$H$36,2,FALSE),"") ->  | AV10: 32 | AW10: 2025-09-07 | AX10: 45907 | AY10: 2025-09-07 | AZ10: =IFERROR(VLOOKUP(AX10,Feiertage!$A$3:$B$29,2,FALSE),"") ->  | BA10: =IFERROR(VLOOKUP(AX10,Mondphasen!$G$23:$H$36,2,FALSE),"") -> l | BB10: 36 | BC10: 2025-10-07 | BD10: 45937 | BE10: 2025-10-07 | BF10: =IFERROR(VLOOKUP(BD10,Feiertage!$A$3:$B$29,2,FALSE),"") ->  | BG10: =IFERROR(VLOOKUP(BD10,Mondphasen!$G$23:$H$36,2,FALSE),"") -> l | BH10: 41 | BI10: 2025-11-07 | BJ10: 45968 | BK10: 2025-11-07 | BL10: =IFERROR(VLOOKUP(BJ10,Feiertage!$A$3:$B$29,2,FALSE),"") ->  | BM10: =IFERROR(VLOOKUP(BJ10,Mondphasen!$G$23:$H$36,2,FALSE),"") ->  | BN10: 45 | BO10: 2025-12-07 | BP10: 45998 | BQ10: 2025-12-07 | BR10: =IFERROR(VLOOKUP(BP10,Feiertage!$A$3:$B$29,2,FALSE),"") ->  | BS10: =IFERROR(VLOOKUP(BP10,Mondphasen!$G$23:$H$36,2,FALSE),"") ->  | BT10: 49
A11: 2025-01-08 | B11: 45665 | C11: 2025-01-08 | D11: =IFERROR(VLOOKUP(B11,Feiertage!$A$3:$B$29,2,FALSE),"") ->  | E11: =IFERROR(VLOOKUP(B11,Mondphasen!$G$23:$H$36,2,FALSE),"") ->  | F11: 2 | G11: 2025-02-08 | H11: 45696 | I11: 2025-02-08 | J11: =IFERROR(VLOOKUP(H11,Feiertage!$A$3:$B$29,2,FALSE),"") ->  | K11: =IFERROR(VLOOKUP(H11,Mondphasen!$G$23:$H$36,2,FALSE),"") ->  | L11: 6 | M11: 2025-03-08 | N11: 45724 | O11: 2025-03-08 | P11: =IFERROR(VLOOKUP(N11,Feiertage!$A$3:$B$29,2,FALSE),"") ->  | Q11: =IFERROR(VLOOKUP(N11,Mondphasen!$G$23:$H$36,2,FALSE),"") ->  | R11: 10 | S11: 2025-04-08 | T11: 45755 | U11: 2025-04-08 | V11: =IFERROR(VLOOKUP(T11,Feiertage!$A$3:$B$29,2,FALSE),"") ->  | W11: =IFERROR(VLOOKUP(T11,Mondphasen!$G$23:$H$36,2,FALSE),"") ->  | X11: 15 | Y11: 2025-05-08 | Z11: 45785 | AA11: 2025-05-08 | AB11: =IFERROR(VLOOKUP(Z11,Feiertage!$A$3:$B$29,2,FALSE),"") ->  | AC11: =IFERROR(VLOOKUP(Z11,Mondphasen!$G$23:$H$36,2,FALSE),"") ->  | AD11: 19 | AE11: 2025-06-08 | AF11: 45816 | AG11: 2025-06-08 | AH11: =IFERROR(VLOOKUP(AF11,Feiertage!$A$3:$B$29,2,FALSE),"") -> Pfingsten | AI11: =IFERROR(VLOOKUP(AF11,Mondphasen!$G$23:$H$36,2,FALSE),"") ->  | AJ11: 23 | AK11: 2025-07-08 | AL11: 45846 | AM11: 2025-07-08 | AN11: =IFERROR(VLOOKUP(AL11,Feiertage!$A$3:$B$29,2,FALSE),"") ->  | AO11: =IFERROR(VLOOKUP(AL11,Mondphasen!$G$23:$H$36,2,FALSE),"") ->  | AP11: 28 | AQ11: 2025-08-08 | AR11: 45877 | AS11: 2025-08-08 | AT11: =IFERROR(VLOOKUP(AR11,Feiertage!$A$3:$B$29,2,FALSE),"") ->  | AU11: =IFERROR(VLOOKUP(AR11,Mondphasen!$G$23:$H$36,2,FALSE),"") ->  | AV11: 32 | AW11: 2025-09-08 | AX11: 45908 | AY11: 2025-09-08 | AZ11: =IFERROR(VLOOKUP(AX11,Feiertage!$A$3:$B$29,2,FALSE),"") ->  | BA11: =IFERROR(VLOOKUP(AX11,Mondphasen!$G$23:$H$36,2,FALSE),"") ->  | BB11: 37 | BC11: 2025-10-08 | BD11: 45938 | BE11: 2025-10-08 | BF11: =IFERROR(VLOOKUP(BD11,Feiertage!$A$3:$B$29,2,FALSE),"") ->  | BG11: =IFERROR(VLOOKUP(BD11,Mondphasen!$G$23:$H$36,2,FALSE),"") ->  | BH11: 41 | BI11: 2025-11-08 | BJ11: 45969 | BK11: 2025-11-08 | BL11: =IFERROR(VLOOKUP(BJ11,Feiertage!$A$3:$B$29,2,FALSE),"") ->  | BM11: =IFERROR(VLOOKUP(BJ11,Mondphasen!$G$23:$H$36,2,FALSE),"") ->  | BN11: 45 | BO11: 2025-12-08 | BP11: 45999 | BQ11: 2025-12-08 | BR11: =IFERROR(VLOOKUP(BP11,Feiertage!$A$3:$B$29,2,FALSE),"") ->  | BS11: =IFERROR(VLOOKUP(BP11,Mondphasen!$G$23:$H$36,2,FALSE),"") ->  | BT11: 50
A12: 2025-01-09 | B12: 45666 | C12: 2025-01-09 | D12: =IFERROR(VLOOKUP(B12,Feiertage!$A$3:$B$29,2,FALSE),"") ->  | E12: =IFERROR(VLOOKUP(B12,Mondphasen!$G$23:$H$36,2,FALSE),"") ->  | F12: 2 | G12: 2025-02-09 | H12: 45697 | I12: 2025-02-09 | J12: =IFERROR(VLOOKUP(H12,Feiertage!$A$3:$B$29,2,FALSE),"") ->  | K12: =IFERROR(VLOOKUP(H12,Mondphasen!$G$23:$H$36,2,FALSE),"") ->  | L12: 6 | M12: 2025-03-09 | N12: 45725 | O12: 2025-03-09 | P12: =IFERROR(VLOOKUP(N12,Feiertage!$A$3:$B$29,2,FALSE),"") ->  | Q12: =IFERROR(VLOOKUP(N12,Mondphasen!$G$23:$H$36,2,FALSE),"") ->  | R12: 10 | S12: 2025-04-09 | T12: 45756 | U12: 2025-04-09 | V12: =IFERROR(VLOOKUP(T12,Feiertage!$A$3:$B$29,2,FALSE),"") ->  | W12: =IFERROR(VLOOKUP(T12,Mondphasen!$G$23:$H$36,2,FALSE),"") ->  | X12: 15 | Y12: 2025-05-09 | Z12: 45786 | AA12: 2025-05-09 | AB12: =IFERROR(VLOOKUP(Z12,Feiertage!$A$3:$B$29,2,FALSE),"") ->  | AC12: =IFERROR(VLOOKUP(Z12,Mondphasen!$G$23:$H$36,2,FALSE),"") ->  | AD12: 19 | AE12: 2025-06-09 | AF12: 45817 | AG12: 2025-06-09 | AH12: =IFERROR(VLOOKUP(AF12,Feiertage!$A$3:$B$29,2,FALSE),"") -> Pfingst-Montag | AI12: =IFERROR(VLOOKUP(AF12,Mondphasen!$G$23:$H$36,2,FALSE),"") ->  | AJ12: 24 | AK12: 2025-07-09 | AL12: 45847 | AM12: 2025-07-09 | AN12: =IFERROR(VLOOKUP(AL12,Feiertage!$A$3:$B$29,2,FALSE),"") ->  | AO12: =IFERROR(VLOOKUP(AL12,Mondphasen!$G$23:$H$36,2,FALSE),"") ->  | AP12: 28 | AQ12: 2025-08-09 | AR12: 45878 | AS12: 2025-08-09 | AT12: =IFERROR(VLOOKUP(AR12,Feiertage!$A$3:$B$29,2,FALSE),"") ->  | AU12: =IFERROR(VLOOKUP(AR12,Mondphasen!$G$23:$H$36,2,FALSE),"") -> l | AV12: 32 | AW12: 2025-09-09 | AX12: 45909 | AY12: 2025-09-09 | AZ12: =IFERROR(VLOOKUP(AX12,Feiertage!$A$3:$B$29,2,FALSE),"") ->  | BA12: =IFERROR(VLOOKUP(AX12,Mondphasen!$G$23:$H$36,2,FALSE),"") ->  | BB12: 37 | BC12: 2025-10-09 | BD12: 45939 | BE12: 2025-10-09 | BF12: =IFERROR(VLOOKUP(BD12,Feiertage!$A$3:$B$29,2,FALSE),"") ->  | BG12: =IFERROR(VLOOKUP(BD12,Mondphasen!$G$23:$H$36,2,FALSE),"") ->  | BH12: 41 | BI12: 2025-11-09 | BJ12: 45970 | BK12: 2025-11-09 | BL12: =IFERROR(VLOOKUP(BJ12,Feiertage!$A$3:$B$29,2,FALSE),"") ->  | BM12: =IFERROR(VLOOKUP(BJ12,Mondphasen!$G$23:$H$36,2,FALSE),"") ->  | BN12: 45 | BO12: 2025-12-09 | BP12: 46000 | BQ12: 2025-12-09 | BR12: =IFERROR(VLOOKUP(BP12,Feiertage!$A$3:$B$29,2,FALSE),"") ->  | BS12: =IFERROR(VLOOKUP(BP12,Mondphasen!$G$23:$H$36,2,FALSE),"") ->  | BT12: 50
A13: 2025-01-10 | B13: 45667 | C13: 2025-01-10 | D13: =IFERROR(VLOOKUP(B13,Feiertage!$A$3:$B$29,2,FALSE),"") ->  | E13: =IFERROR(VLOOKUP(B13,Mondphasen!$G$23:$H$36,2,FALSE),"") ->  | F13: 2 | G13: 2025-02-10 | H13: 45698 | I13: 2025-02-10 | J13: =IFERROR(VLOOKUP(H13,Feiertage!$A$3:$B$29,2,FALSE),"") ->  | K13: =IFERROR(VLOOKUP(H13,Mondphasen!$G$23:$H$36,2,FALSE),"") ->  | L13: 7 | M13: 2025-03-10 | N13: 45726 | O13: 2025-03-10 | P13: =IFERROR(VLOOKUP(N13,Feiertage!$A$3:$B$29,2,FALSE),"") ->  | Q13: =IFERROR(VLOOKUP(N13,Mondphasen!$G$23:$H$36,2,FALSE),"") ->  | R13: 11 | S13: 2025-04-10 | T13: 45757 | U13: 2025-04-10 | V13: =IFERROR(VLOOKUP(T13,Feiertage!$A$3:$B$29,2,FALSE),"") ->  | W13: =IFERROR(VLOOKUP(T13,Mondphasen!$G$23:$H$36,2,FALSE),"") ->  | X13: 15 | Y13: 2025-05-10 | Z13: 45787 | AA13: 2025-05-10 | AB13: =IFERROR(VLOOKUP(Z13,Feiertage!$A$3:$B$29,2,FALSE),"") ->  | AC13: =IFERROR(VLOOKUP(Z13,Mondphasen!$G$23:$H$36,2,FALSE),"") ->  | AD13: 19 | AE13: 2025-06-10 | AF13: 45818 | AG13: 2025-06-10 | AH13: =IFERROR(VLOOKUP(AF13,Feiertage!$A$3:$B$29,2,FALSE),"") ->  | AI13: =IFERROR(VLOOKUP(AF13,Mondphasen!$G$23:$H$36,2,FALSE),"") ->  | AJ13: 24 | AK13: 2025-07-10 | AL13: 45848 | AM13: 2025-07-10 | AN13: =IFERROR(VLOOKUP(AL13,Feiertage!$A$3:$B$29,2,FALSE),"") ->  | AO13: =IFERROR(VLOOKUP(AL13,Mondphasen!$G$23:$H$36,2,FALSE),"") -> l | AP13: 28 | AQ13: 2025-08-10 | AR13: 45879 | AS13: 2025-08-10 | AT13: =IFERROR(VLOOKUP(AR13,Feiertage!$A$3:$B$29,2,FALSE),"") ->  | AU13: =IFERROR(VLOOKUP(AR13,Mondphasen!$G$23:$H$36,2,FALSE),"") ->  | AV13: 32 | AW13: 2025-09-10 | AX13: 45910 | AY13: 2025-09-10 | AZ13: =IFERROR(VLOOKUP(AX13,Feiertage!$A$3:$B$29,2,FALSE),"") ->  | BA13: =IFERROR(VLOOKUP(AX13,Mondphasen!$G$23:$H$36,2,FALSE),"") ->  | BB13: 37 | BC13: 2025-10-10 | BD13: 45940 | BE13: 2025-10-10 | BF13: =IFERROR(VLOOKUP(BD13,Feiertage!$A$3:$B$29,2,FALSE),"") ->  | BG13: =IFERROR(VLOOKUP(BD13,Mondphasen!$G$23:$H$36,2,FALSE),"") ->  | BH13: 41 | BI13: 2025-11-10 | BJ13: 45971 | BK13: 2025-11-10 | BL13: =IFERROR(VLOOKUP(BJ13,Feiertage!$A$3:$B$29,2,FALSE),"") ->  | BM13: =IFERROR(VLOOKUP(BJ13,Mondphasen!$G$23:$H$36,2,FALSE),"") ->  | BN13: 46 | BO13: 2025-12-10 | BP13: 46001 | BQ13: 2025-12-10 | BR13: =IFERROR(VLOOKUP(BP13,Feiertage!$A$3:$B$29,2,FALSE),"") ->  | BS13: =IFERROR(VLOOKUP(BP13,Mondphasen!$G$23:$H$36,2,FALSE),"") ->  | BT13: 50
A14: 2025-01-11 | B14: 45668 | C14: 2025-01-11 | D14: =IFERROR(VLOOKUP(B14,Feiertage!$A$3:$B$29,2,FALSE),"") ->  | E14: =IFERROR(VLOOKUP(B14,Mondphasen!$G$23:$H$36,2,FALSE),"") ->  | F14: 2 | G14: 2025-02-11 | H14: 45699 | I14: 2025-02-11 | J14: =IFERROR(VLOOKUP(H14,Feiertage!$A$3:$B$29,2,FALSE),"") ->  | K14: =IFERROR(VLOOKUP(H14,Mondphasen!$G$23:$H$36,2,FALSE),"") ->  | L14: 7 | M14: 2025-03-11 | N14: 45727 | O14: 2025-03-11 | P14: =IFERROR(VLOOKUP(N14,Feiertage!$A$3:$B$29,2,FALSE),"") ->  | Q14: =IFERROR(VLOOKUP(N14,Mondphasen!$G$23:$H$36,2,FALSE),"") ->  | R14: 11 | S14: 2025-04-11 | T14: 45758 | U14: 2025-04-11 | V14: =IFERROR(VLOOKUP(T14,Feiertage!$A$3:$B$29,2,FALSE),"") ->  | W14: =IFERROR(VLOOKUP(T14,Mondphasen!$G$23:$H$36,2,FALSE),"") ->  | X14: 15 | Y14: 2025-05-11 | Z14: 45788 | AA14: 2025-05-11 | AB14: =IFERROR(VLOOKUP(Z14,Feiertage!$A$3:$B$29,2,FALSE),"") -> Muttertag | AC14: =IFERROR(VLOOKUP(Z14,Mondphasen!$G$23:$H$36,2,FALSE),"") ->  | AD14: 19 | AE14: 2025-06-11 | AF14: 45819 | AG14: 2025-06-11 | AH14: =IFERROR(VLOOKUP(AF14,Feiertage!$A$3:$B$29,2,FALSE),"") ->  | AI14: =IFERROR(VLOOKUP(AF14,Mondphasen!$G$23:$H$36,2,FALSE),"") -> l | AJ14: 24 | AK14: 2025-07-11 | AL14: 45849 | AM14: 2025-07-11 | AN14: =IFERROR(VLOOKUP(AL14,Feiertage!$A$3:$B$29,2,FALSE),"") ->  | AO14: =IFERROR(VLOOKUP(AL14,Mondphasen!$G$23:$H$36,2,FALSE),"") ->  | AP14: 28 | AQ14: 2025-08-11 | AR14: 45880 | AS14: 2025-08-11 | AT14: =IFERROR(VLOOKUP(AR14,Feiertage!$A$3:$B$29,2,FALSE),"") ->  | AU14: =IFERROR(VLOOKUP(AR14,Mondphasen!$G$23:$H$36,2,FALSE),"") ->  | AV14: 33 | AW14: 2025-09-11 | AX14: 45911 | AY14: 2025-09-11 | AZ14: =IFERROR(VLOOKUP(AX14,Feiertage!$A$3:$B$29,2,FALSE),"") ->  | BA14: =IFERROR(VLOOKUP(AX14,Mondphasen!$G$23:$H$36,2,FALSE),"") ->  | BB14: 37 | BC14: 2025-10-11 | BD14: 45941 | BE14: 2025-10-11 | BF14: =IFERROR(VLOOKUP(BD14,Feiertage!$A$3:$B$29,2,FALSE),"") ->  | BG14: =IFERROR(VLOOKUP(BD14,Mondphasen!$G$23:$H$36,2,FALSE),"") ->  | BH14: 41 | BI14: 2025-11-11 | BJ14: 45972 | BK14: 2025-11-11 | BL14: =IFERROR(VLOOKUP(BJ14,Feiertage!$A$3:$B$29,2,FALSE),"") ->  | BM14: =IFERROR(VLOOKUP(BJ14,Mondphasen!$G$23:$H$36,2,FALSE),"") ->  | BN14: 46 | BO14: 2025-12-11 | BP14: 46002 | BQ14: 2025-12-11 | BR14: =IFERROR(VLOOKUP(BP14,Feiertage!$A$3:$B$29,2,FALSE),"") ->  | BS14: =IFERROR(VLOOKUP(BP14,Mondphasen!$G$23:$H$36,2,FALSE),"") ->  | BT14: 50
A15: 2025-01-12 | B15: 45669 | C15: 2025-01-12 | D15: =IFERROR(VLOOKUP(B15,Feiertage!$A$3:$B$29,2,FALSE),"") ->  | E15: =IFERROR(VLOOKUP(B15,Mondphasen!$G$23:$H$36,2,FALSE),"") ->  | F15: 2 | G15: 2025-02-12 | H15: 45700 | I15: 2025-02-12 | J15: =IFERROR(VLOOKUP(H15,Feiertage!$A$3:$B$29,2,FALSE),"") ->  | K15: =IFERROR(VLOOKUP(H15,Mondphasen!$G$23:$H$36,2,FALSE),"") -> l | L15: 7 | M15: 2025-03-12 | N15: 45728 | O15: 2025-03-12 | P15: =IFERROR(VLOOKUP(N15,Feiertage!$A$3:$B$29,2,FALSE),"") ->  | Q15: =IFERROR(VLOOKUP(N15,Mondphasen!$G$23:$H$36,2,FALSE),"") ->  | R15: 11 | S15: 2025-04-12 | T15: 45759 | U15: 2025-04-12 | V15: =IFERROR(VLOOKUP(T15,Feiertage!$A$3:$B$29,2,FALSE),"") ->  | W15: =IFERROR(VLOOKUP(T15,Mondphasen!$G$23:$H$36,2,FALSE),"") ->  | X15: 15 | Y15: 2025-05-12 | Z15: 45789 | AA15: 2025-05-12 | AB15: =IFERROR(VLOOKUP(Z15,Feiertage!$A$3:$B$29,2,FALSE),"") ->  | AC15: =IFERROR(VLOOKUP(Z15,Mondphasen!$G$23:$H$36,2,FALSE),"") -> l | AD15: 20 | AE15: 2025-06-12 | AF15: 45820 | AG15: 2025-06-12 | AH15: =IFERROR(VLOOKUP(AF15,Feiertage!$A$3:$B$29,2,FALSE),"") ->  | AI15: =IFERROR(VLOOKUP(AF15,Mondphasen!$G$23:$H$36,2,FALSE),"") ->  | AJ15: 24 | AK15: 2025-07-12 | AL15: 45850 | AM15: 2025-07-12 | AN15: =IFERROR(VLOOKUP(AL15,Feiertage!$A$3:$B$29,2,FALSE),"") ->  | AO15: =IFERROR(VLOOKUP(AL15,Mondphasen!$G$23:$H$36,2,FALSE),"") ->  | AP15: 28 | AQ15: 2025-08-12 | AR15: 45881 | AS15: 2025-08-12 | AT15: =IFERROR(VLOOKUP(AR15,Feiertage!$A$3:$B$29,2,FALSE),"") ->  | AU15: =IFERROR(VLOOKUP(AR15,Mondphasen!$G$23:$H$36,2,FALSE),"") ->  | AV15: 33 | AW15: 2025-09-12 | AX15: 45912 | AY15: 2025-09-12 | AZ15: =IFERROR(VLOOKUP(AX15,Feiertage!$A$3:$B$29,2,FALSE),"") ->  | BA15: =IFERROR(VLOOKUP(AX15,Mondphasen!$G$23:$H$36,2,FALSE),"") ->  | BB15: 37 | BC15: 2025-10-12 | BD15: 45942 | BE15: 2025-10-12 | BF15: =IFERROR(VLOOKUP(BD15,Feiertage!$A$3:$B$29,2,FALSE),"") ->  | BG15: =IFERROR(VLOOKUP(BD15,Mondphasen!$G$23:$H$36,2,FALSE),"") ->  | BH15: 41 | BI15: 2025-11-12 | BJ15: 45973 | BK15: 2025-11-12 | BL15: =IFERROR(VLOOKUP(BJ15,Feiertage!$A$3:$B$29,2,FALSE),"") ->  | BM15: =IFERROR(VLOOKUP(BJ15,Mondphasen!$G$23:$H$36,2,FALSE),"") ->  | BN15: 46 | BO15: 2025-12-12 | BP15: 46003 | BQ15: 2025-12-12 | BR15: =IFERROR(VLOOKUP(BP15,Feiertage!$A$3:$B$29,2,FALSE),"") ->  | BS15: =IFERROR(VLOOKUP(BP15,Mondphasen!$G$23:$H$36,2,FALSE),"") ->  | BT15: 50
A16: 2025-01-13 | B16: 45670 | C16: 2025-01-13 | D16: =IFERROR(VLOOKUP(B16,Feiertage!$A$3:$B$29,2,FALSE),"") ->  | E16: =IFERROR(VLOOKUP(B16,Mondphasen!$G$23:$H$36,2,FALSE),"") ->  | F16: 3 | G16: 2025-02-13 | H16: 45701 | I16: 2025-02-13 | J16: =IFERROR(VLOOKUP(H16,Feiertage!$A$3:$B$29,2,FALSE),"") ->  | K16: =IFERROR(VLOOKUP(H16,Mondphasen!$G$23:$H$36,2,FALSE),"") ->  | L16: 7 | M16: 2025-03-13 | N16: 45729 | O16: 2025-03-13 | P16: =IFERROR(VLOOKUP(N16,Feiertage!$A$3:$B$29,2,FALSE),"") ->  | Q16: =IFERROR(VLOOKUP(N16,Mondphasen!$G$23:$H$36,2,FALSE),"") ->  | R16: 11 | S16: 2025-04-13 | T16: 45760 | U16: 2025-04-13 | V16: =IFERROR(VLOOKUP(T16,Feiertage!$A$3:$B$29,2,FALSE),"") -> Palmsonntag | W16: =IFERROR(VLOOKUP(T16,Mondphasen!$G$23:$H$36,2,FALSE),"") -> l | X16: 15 | Y16: 2025-05-13 | Z16: 45790 | AA16: 2025-05-13 | AB16: =IFERROR(VLOOKUP(Z16,Feiertage!$A$3:$B$29,2,FALSE),"") ->  | AC16: =IFERROR(VLOOKUP(Z16,Mondphasen!$G$23:$H$36,2,FALSE),"") ->  | AD16: 20 | AE16: 2025-06-13 | AF16: 45821 | AG16: 2025-06-13 | AH16: =IFERROR(VLOOKUP(AF16,Feiertage!$A$3:$B$29,2,FALSE),"") ->  | AI16: =IFERROR(VLOOKUP(AF16,Mondphasen!$G$23:$H$36,2,FALSE),"") ->  | AJ16: 24 | AK16: 2025-07-13 | AL16: 45851 | AM16: 2025-07-13 | AN16: =IFERROR(VLOOKUP(AL16,Feiertage!$A$3:$B$29,2,FALSE),"") ->  | AO16: =IFERROR(VLOOKUP(AL16,Mondphasen!$G$23:$H$36,2,FALSE),"") ->  | AP16: 28 | AQ16: 2025-08-13 | AR16: 45882 | AS16: 2025-08-13 | AT16: =IFERROR(VLOOKUP(AR16,Feiertage!$A$3:$B$29,2,FALSE),"") ->  | AU16: =IFERROR(VLOOKUP(AR16,Mondphasen!$G$23:$H$36,2,FALSE),"") ->  | AV16: 33 | AW16: 2025-09-13 | AX16: 45913 | AY16: 2025-09-13 | AZ16: =IFERROR(VLOOKUP(AX16,Feiertage!$A$3:$B$29,2,FALSE),"") ->  | BA16: =IFERROR(VLOOKUP(AX16,Mondphasen!$G$23:$H$36,2,FALSE),"") ->  | BB16: 37 | BC16: 2025-10-13 | BD16: 45943 | BE16: 2025-10-13 | BF16: =IFERROR(VLOOKUP(BD16,Feiertage!$A$3:$B$29,2,FALSE),"") ->  | BG16: =IFERROR(VLOOKUP(BD16,Mondphasen!$G$23:$H$36,2,FALSE),"") ->  | BH16: 42 | BI16: 2025-11-13 | BJ16: 45974 | BK16: 2025-11-13 | BL16: =IFERROR(VLOOKUP(BJ16,Feiertage!$A$3:$B$29,2,FALSE),"") ->  | BM16: =IFERROR(VLOOKUP(BJ16,Mondphasen!$G$23:$H$36,2,FALSE),"") ->  | BN16: 46 | BO16: 2025-12-13 | BP16: 46004 | BQ16: 2025-12-13 | BR16: =IFERROR(VLOOKUP(BP16,Feiertage!$A$3:$B$29,2,FALSE),"") ->  | BS16: =IFERROR(VLOOKUP(BP16,Mondphasen!$G$23:$H$36,2,FALSE),"") ->  | BT16: 50
A17: 2025-01-14 | B17: 45671 | C17: 2025-01-14 | D17: =IFERROR(VLOOKUP(B17,Feiertage!$A$3:$B$29,2,FALSE),"") ->  | E17: =IFERROR(VLOOKUP(B17,Mondphasen!$G$23:$H$36,2,FALSE),"") -> l | F17: 3 | G17: 2025-02-14 | H17: 45702 | I17: 2025-02-14 | J17: =IFERROR(VLOOKUP(H17,Feiertage!$A$3:$B$29,2,FALSE),"") ->  | K17: =IFERROR(VLOOKUP(H17,Mondphasen!$G$23:$H$36,2,FALSE),"") ->  | L17: 7 | M17: 2025-03-14 | N17: 45730 | O17: 2025-03-14 | P17: =IFERROR(VLOOKUP(N17,Feiertage!$A$3:$B$29,2,FALSE),"") ->  | Q17: =IFERROR(VLOOKUP(N17,Mondphasen!$G$23:$H$36,2,FALSE),"") -> l | R17: 11 | S17: 2025-04-14 | T17: 45761 | U17: 2025-04-14 | V17: =IFERROR(VLOOKUP(T17,Feiertage!$A$3:$B$29,2,FALSE),"") ->  | W17: =IFERROR(VLOOKUP(T17,Mondphasen!$G$23:$H$36,2,FALSE),"") ->  | X17: 16 | Y17: 2025-05-14 | Z17: 45791 | AA17: 2025-05-14 | AB17: =IFERROR(VLOOKUP(Z17,Feiertage!$A$3:$B$29,2,FALSE),"") ->  | AC17: =IFERROR(VLOOKUP(Z17,Mondphasen!$G$23:$H$36,2,FALSE),"") ->  | AD17: 20 | AE17: 2025-06-14 | AF17: 45822 | AG17: 2025-06-14 | AH17: =IFERROR(VLOOKUP(AF17,Feiertage!$A$3:$B$29,2,FALSE),"") ->  | AI17: =IFERROR(VLOOKUP(AF17,Mondphasen!$G$23:$H$36,2,FALSE),"") ->  | AJ17: 24 | AK17: 2025-07-14 | AL17: 45852 | AM17: 2025-07-14 | AN17: =IFERROR(VLOOKUP(AL17,Feiertage!$A$3:$B$29,2,FALSE),"") ->  | AO17: =IFERROR(VLOOKUP(AL17,Mondphasen!$G$23:$H$36,2,FALSE),"") ->  | AP17: 29 | AQ17: 2025-08-14 | AR17: 45883 | AS17: 2025-08-14 | AT17: =IFERROR(VLOOKUP(AR17,Feiertage!$A$3:$B$29,2,FALSE),"") ->  | AU17: =IFERROR(VLOOKUP(AR17,Mondphasen!$G$23:$H$36,2,FALSE),"") ->  | AV17: 33 | AW17: 2025-09-14 | AX17: 45914 | AY17: 2025-09-14 | AZ17: =IFERROR(VLOOKUP(AX17,Feiertage!$A$3:$B$29,2,FALSE),"") ->  | BA17: =IFERROR(VLOOKUP(AX17,Mondphasen!$G$23:$H$36,2,FALSE),"") ->  | BB17: 37 | BC17: 2025-10-14 | BD17: 45944 | BE17: 2025-10-14 | BF17: =IFERROR(VLOOKUP(BD17,Feiertage!$A$3:$B$29,2,FALSE),"") ->  | BG17: =IFERROR(VLOOKUP(BD17,Mondphasen!$G$23:$H$36,2,FALSE),"") ->  | BH17: 42 | BI17: 2025-11-14 | BJ17: 45975 | BK17: 2025-11-14 | BL17: =IFERROR(VLOOKUP(BJ17,Feiertage!$A$3:$B$29,2,FALSE),"") ->  | BM17: =IFERROR(VLOOKUP(BJ17,Mondphasen!$G$23:$H$36,2,FALSE),"") ->  | BN17: 46 | BO17: 2025-12-14 | BP17: 46005 | BQ17: 2025-12-14 | BR17: =IFERROR(VLOOKUP(BP17,Feiertage!$A$3:$B$29,2,FALSE),"") ->  | BS17: =IFERROR(VLOOKUP(BP17,Mondphasen!$G$23:$H$36,2,FALSE),"") ->  | BT17: 50
A18: 2025-01-15 | B18: 45672 | C18: 2025-01-15 | D18: =IFERROR(VLOOKUP(B18,Feiertage!$A$3:$B$29,2,FALSE),"") ->  | E18: =IFERROR(VLOOKUP(B18,Mondphasen!$G$23:$H$36,2,FALSE),"") ->  | F18: 3 | G18: 2025-02-15 | H18: 45703 | I18: 2025-02-15 | J18: =IFERROR(VLOOKUP(H18,Feiertage!$A$3:$B$29,2,FALSE),"") ->  | K18: =IFERROR(VLOOKUP(H18,Mondphasen!$G$23:$H$36,2,FALSE),"") ->  | L18: 7 | M18: 2025-03-15 | N18: 45731 | O18: 2025-03-15 | P18: =IFERROR(VLOOKUP(N18,Feiertage!$A$3:$B$29,2,FALSE),"") ->  | Q18: =IFERROR(VLOOKUP(N18,Mondphasen!$G$23:$H$36,2,FALSE),"") ->  | R18: 11 | S18: 2025-04-15 | T18: 45762 | U18: 2025-04-15 | V18: =IFERROR(VLOOKUP(T18,Feiertage!$A$3:$B$29,2,FALSE),"") ->  | W18: =IFERROR(VLOOKUP(T18,Mondphasen!$G$23:$H$36,2,FALSE),"") ->  | X18: 16 | Y18: 2025-05-15 | Z18: 45792 | AA18: 2025-05-15 | AB18: =IFERROR(VLOOKUP(Z18,Feiertage!$A$3:$B$29,2,FALSE),"") ->  | AC18: =IFERROR(VLOOKUP(Z18,Mondphasen!$G$23:$H$36,2,FALSE),"") ->  | AD18: 20 | AE18: 2025-06-15 | AF18: 45823 | AG18: 2025-06-15 | AH18: =IFERROR(VLOOKUP(AF18,Feiertage!$A$3:$B$29,2,FALSE),"") ->  | AI18: =IFERROR(VLOOKUP(AF18,Mondphasen!$G$23:$H$36,2,FALSE),"") ->  | AJ18: 24 | AK18: 2025-07-15 | AL18: 45853 | AM18: 2025-07-15 | AN18: =IFERROR(VLOOKUP(AL18,Feiertage!$A$3:$B$29,2,FALSE),"") ->  | AO18: =IFERROR(VLOOKUP(AL18,Mondphasen!$G$23:$H$36,2,FALSE),"") ->  | AP18: 29 | AQ18: 2025-08-15 | AR18: 45884 | AS18: 2025-08-15 | AT18: =IFERROR(VLOOKUP(AR18,Feiertage!$A$3:$B$29,2,FALSE),"") -> Maria-Himmelfahrt | AU18: =IFERROR(VLOOKUP(AR18,Mondphasen!$G$23:$H$36,2,FALSE),"") ->  | AV18: 33 | AW18: 2025-09-15 | AX18: 45915 | AY18: 2025-09-15 | AZ18: =IFERROR(VLOOKUP(AX18,Feiertage!$A$3:$B$29,2,FALSE),"") ->  | BA18: =IFERROR(VLOOKUP(AX18,Mondphasen!$G$23:$H$36,2,FALSE),"") ->  | BB18: 38 | BC18: 2025-10-15 | BD18: 45945 | BE18: 2025-10-15 | BF18: =IFERROR(VLOOKUP(BD18,Feiertage!$A$3:$B$29,2,FALSE),"") ->  | BG18: =IFERROR(VLOOKUP(BD18,Mondphasen!$G$23:$H$36,2,FALSE),"") ->  | BH18: 42 | BI18: 2025-11-15 | BJ18: 45976 | BK18: 2025-11-15 | BL18: =IFERROR(VLOOKUP(BJ18,Feiertage!$A$3:$B$29,2,FALSE),"") ->  | BM18: =IFERROR(VLOOKUP(BJ18,Mondphasen!$G$23:$H$36,2,FALSE),"") ->  | BN18: 46 | BO18: 2025-12-15 | BP18: 46006 | BQ18: 2025-12-15 | BR18: =IFERROR(VLOOKUP(BP18,Feiertage!$A$3:$B$29,2,FALSE),"") ->  | BS18: =IFERROR(VLOOKUP(BP18,Mondphasen!$G$23:$H$36,2,FALSE),"") ->  | BT18: 51
A19: 2025-01-16 | B19: 45673 | C19: 2025-01-16 | D19: =IFERROR(VLOOKUP(B19,Feiertage!$A$3:$B$29,2,FALSE),"") ->  | E19: =IFERROR(VLOOKUP(B19,Mondphasen!$G$23:$H$36,2,FALSE),"") ->  | F19: 3 | G19: 2025-02-16 | H19: 45704 | I19: 2025-02-16 | J19: =IFERROR(VLOOKUP(H19,Feiertage!$A$3:$B$29,2,FALSE),"") ->  | K19: =IFERROR(VLOOKUP(H19,Mondphasen!$G$23:$H$36,2,FALSE),"") ->  | L19: 7 | M19: 2025-03-16 | N19: 45732 | O19: 2025-03-16 | P19: =IFERROR(VLOOKUP(N19,Feiertage!$A$3:$B$29,2,FALSE),"") ->  | Q19: =IFERROR(VLOOKUP(N19,Mondphasen!$G$23:$H$36,2,FALSE),"") ->  | R19: 11 | S19: 2025-04-16 | T19: 45763 | U19: 2025-04-16 | V19: =IFERROR(VLOOKUP(T19,Feiertage!$A$3:$B$29,2,FALSE),"") ->  | W19: =IFERROR(VLOOKUP(T19,Mondphasen!$G$23:$H$36,2,FALSE),"") ->  | X19: 16 | Y19: 2025-05-16 | Z19: 45793 | AA19: 2025-05-16 | AB19: =IFERROR(VLOOKUP(Z19,Feiertage!$A$3:$B$29,2,FALSE),"") ->  | AC19: =IFERROR(VLOOKUP(Z19,Mondphasen!$G$23:$H$36,2,FALSE),"") ->  | AD19: 20 | AE19: 2025-06-16 | AF19: 45824 | AG19: 2025-06-16 | AH19: =IFERROR(VLOOKUP(AF19,Feiertage!$A$3:$B$29,2,FALSE),"") ->  | AI19: =IFERROR(VLOOKUP(AF19,Mondphasen!$G$23:$H$36,2,FALSE),"") ->  | AJ19: 25 | AK19: 2025-07-16 | AL19: 45854 | AM19: 2025-07-16 | AN19: =IFERROR(VLOOKUP(AL19,Feiertage!$A$3:$B$29,2,FALSE),"") ->  | AO19: =IFERROR(VLOOKUP(AL19,Mondphasen!$G$23:$H$36,2,FALSE),"") ->  | AP19: 29 | AQ19: 2025-08-16 | AR19: 45885 | AS19: 2025-08-16 | AT19: =IFERROR(VLOOKUP(AR19,Feiertage!$A$3:$B$29,2,FALSE),"") ->  | AU19: =IFERROR(VLOOKUP(AR19,Mondphasen!$G$23:$H$36,2,FALSE),"") ->  | AV19: 33 | AW19: 2025-09-16 | AX19: 45916 | AY19: 2025-09-16 | AZ19: =IFERROR(VLOOKUP(AX19,Feiertage!$A$3:$B$29,2,FALSE),"") ->  | BA19: =IFERROR(VLOOKUP(AX19,Mondphasen!$G$23:$H$36,2,FALSE),"") ->  | BB19: 38 | BC19: 2025-10-16 | BD19: 45946 | BE19: 2025-10-16 | BF19: =IFERROR(VLOOKUP(BD19,Feiertage!$A$3:$B$29,2,FALSE),"") ->  | BG19: =IFERROR(VLOOKUP(BD19,Mondphasen!$G$23:$H$36,2,FALSE),"") ->  | BH19: 42 | BI19: 2025-11-16 | BJ19: 45977 | BK19: 2025-11-16 | BL19: =IFERROR(VLOOKUP(BJ19,Feiertage!$A$3:$B$29,2,FALSE),"") ->  | BM19: =IFERROR(VLOOKUP(BJ19,Mondphasen!$G$23:$H$36,2,FALSE),"") ->  | BN19: 46 | BO19: 2025-12-16 | BP19: 46007 | BQ19: 2025-12-16 | BR19: =IFERROR(VLOOKUP(BP19,Feiertage!$A$3:$B$29,2,FALSE),"") ->  | BS19: =IFERROR(VLOOKUP(BP19,Mondphasen!$G$23:$H$36,2,FALSE),"") ->  | BT19: 51
A20: 2025-01-17 | B20: 45674 | C20: 2025-01-17 | D20: =IFERROR(VLOOKUP(B20,Feiertage!$A$3:$B$29,2,FALSE),"") ->  | E20: =IFERROR(VLOOKUP(B20,Mondphasen!$G$23:$H$36,2,FALSE),"") ->  | F20: 3 | G20: 2025-02-17 | H20: 45705 | I20: 2025-02-17 | J20: =IFERROR(VLOOKUP(H20,Feiertage!$A$3:$B$29,2,FALSE),"") ->  | K20: =IFERROR(VLOOKUP(H20,Mondphasen!$G$23:$H$36,2,FALSE),"") ->  | L20: 8 | M20: 2025-03-17 | N20: 45733 | O20: 2025-03-17 | P20: =IFERROR(VLOOKUP(N20,Feiertage!$A$3:$B$29,2,FALSE),"") ->  | Q20: =IFERROR(VLOOKUP(N20,Mondphasen!$G$23:$H$36,2,FALSE),"") ->  | R20: 12 | S20: 2025-04-17 | T20: 45764 | U20: 2025-04-17 | V20: =IFERROR(VLOOKUP(T20,Feiertage!$A$3:$B$29,2,FALSE),"") -> Grün-Donnerstag | W20: =IFERROR(VLOOKUP(T20,Mondphasen!$G$23:$H$36,2,FALSE),"") ->  | X20: 16 | Y20: 2025-05-17 | Z20: 45794 | AA20: 2025-05-17 | AB20: =IFERROR(VLOOKUP(Z20,Feiertage!$A$3:$B$29,2,FALSE),"") ->  | AC20: =IFERROR(VLOOKUP(Z20,Mondphasen!$G$23:$H$36,2,FALSE),"") ->  | AD20: 20 | AE20: 2025-06-17 | AF20: 45825 | AG20: 2025-06-17 | AH20: =IFERROR(VLOOKUP(AF20,Feiertage!$A$3:$B$29,2,FALSE),"") ->  | AI20: =IFERROR(VLOOKUP(AF20,Mondphasen!$G$23:$H$36,2,FALSE),"") ->  | AJ20: 25 | AK20: 2025-07-17 | AL20: 45855 | AM20: 2025-07-17 | AN20: =IFERROR(VLOOKUP(AL20,Feiertage!$A$3:$B$29,2,FALSE),"") ->  | AO20: =IFERROR(VLOOKUP(AL20,Mondphasen!$G$23:$H$36,2,FALSE),"") ->  | AP20: 29 | AQ20: 2025-08-17 | AR20: 45886 | AS20: 2025-08-17 | AT20: =IFERROR(VLOOKUP(AR20,Feiertage!$A$3:$B$29,2,FALSE),"") ->  | AU20: =IFERROR(VLOOKUP(AR20,Mondphasen!$G$23:$H$36,2,FALSE),"") ->  | AV20: 33 | AW20: 2025-09-17 | AX20: 45917 | AY20: 2025-09-17 | AZ20: =IFERROR(VLOOKUP(AX20,Feiertage!$A$3:$B$29,2,FALSE),"") ->  | BA20: =IFERROR(VLOOKUP(AX20,Mondphasen!$G$23:$H$36,2,FALSE),"") ->  | BB20: 38 | BC20: 2025-10-17 | BD20: 45947 | BE20: 2025-10-17 | BF20: =IFERROR(VLOOKUP(BD20,Feiertage!$A$3:$B$29,2,FALSE),"") ->  | BG20: =IFERROR(VLOOKUP(BD20,Mondphasen!$G$23:$H$36,2,FALSE),"") ->  | BH20: 42 | BI20: 2025-11-17 | BJ20: 45978 | BK20: 2025-11-17 | BL20: =IFERROR(VLOOKUP(BJ20,Feiertage!$A$3:$B$29,2,FALSE),"") ->  | BM20: =IFERROR(VLOOKUP(BJ20,Mondphasen!$G$23:$H$36,2,FALSE),"") ->  | BN20: 47 | BO20: 2025-12-17 | BP20: 46008 | BQ20: 2025-12-17 | BR20: =IFERROR(VLOOKUP(BP20,Feiertage!$A$3:$B$29,2,FALSE),"") ->  | BS20: =IFERROR(VLOOKUP(BP20,Mondphasen!$G$23:$H$36,2,FALSE),"") ->  | BT20: 51
A21: 2025-01-18 | B21: 45675 | C21: 2025-01-18 | D21: =IFERROR(VLOOKUP(B21,Feiertage!$A$3:$B$29,2,FALSE),"") ->  | E21: =IFERROR(VLOOKUP(B21,Mondphasen!$G$23:$H$36,2,FALSE),"") ->  | F21: 3 | G21: 2025-02-18 | H21: 45706 | I21: 2025-02-18 | J21: =IFERROR(VLOOKUP(H21,Feiertage!$A$3:$B$29,2,FALSE),"") ->  | K21: =IFERROR(VLOOKUP(H21,Mondphasen!$G$23:$H$36,2,FALSE),"") ->  | L21: 8 | M21: 2025-03-18 | N21: 45734 | O21: 2025-03-18 | P21: =IFERROR(VLOOKUP(N21,Feiertage!$A$3:$B$29,2,FALSE),"") ->  | Q21: =IFERROR(VLOOKUP(N21,Mondphasen!$G$23:$H$36,2,FALSE),"") ->  | R21: 12 | S21: 2025-04-18 | T21: 45765 | U21: 2025-04-18 | V21: =IFERROR(VLOOKUP(T21,Feiertage!$A$3:$B$29,2,FALSE),"") -> Karfreitag | W21: =IFERROR(VLOOKUP(T21,Mondphasen!$G$23:$H$36,2,FALSE),"") ->  | X21: 16 | Y21: 2025-05-18 | Z21: 45795 | AA21: 2025-05-18 | AB21: =IFERROR(VLOOKUP(Z21,Feiertage!$A$3:$B$29,2,FALSE),"") ->  | AC21: =IFERROR(VLOOKUP(Z21,Mondphasen!$G$23:$H$36,2,FALSE),"") ->  | AD21: 20 | AE21: 2025-06-18 | AF21: 45826 | AG21: 2025-06-18 | AH21: =IFERROR(VLOOKUP(AF21,Feiertage!$A$3:$B$29,2,FALSE),"") ->  | AI21: =IFERROR(VLOOKUP(AF21,Mondphasen!$G$23:$H$36,2,FALSE),"") ->  | AJ21: 25 | AK21: 2025-07-18 | AL21: 45856 | AM21: 2025-07-18 | AN21: =IFERROR(VLOOKUP(AL21,Feiertage!$A$3:$B$29,2,FALSE),"") ->  | AO21: =IFERROR(VLOOKUP(AL21,Mondphasen!$G$23:$H$36,2,FALSE),"") ->  | AP21: 29 | AQ21: 2025-08-18 | AR21: 45887 | AS21: 2025-08-18 | AT21: =IFERROR(VLOOKUP(AR21,Feiertage!$A$3:$B$29,2,FALSE),"") ->  | AU21: =IFERROR(VLOOKUP(AR21,Mondphasen!$G$23:$H$36,2,FALSE),"") ->  | AV21: 34 | AW21: 2025-09-18 | AX21: 45918 | AY21: 2025-09-18 | AZ21: =IFERROR(VLOOKUP(AX21,Feiertage!$A$3:$B$29,2,FALSE),"") ->  | BA21: =IFERROR(VLOOKUP(AX21,Mondphasen!$G$23:$H$36,2,FALSE),"") ->  | BB21: 38 | BC21: 2025-10-18 | BD21: 45948 | BE21: 2025-10-18 | BF21: =IFERROR(VLOOKUP(BD21,Feiertage!$A$3:$B$29,2,FALSE),"") ->  | BG21: =IFERROR(VLOOKUP(BD21,Mondphasen!$G$23:$H$36,2,FALSE),"") ->  | BH21: 42 | BI21: 2025-11-18 | BJ21: 45979 | BK21: 2025-11-18 | BL21: =IFERROR(VLOOKUP(BJ21,Feiertage!$A$3:$B$29,2,FALSE),"") ->  | BM21: =IFERROR(VLOOKUP(BJ21,Mondphasen!$G$23:$H$36,2,FALSE),"") ->  | BN21: 47 | BO21: 2025-12-18 | BP21: 46009 | BQ21: 2025-12-18 | BR21: =IFERROR(VLOOKUP(BP21,Feiertage!$A$3:$B$29,2,FALSE),"") ->  | BS21: =IFERROR(VLOOKUP(BP21,Mondphasen!$G$23:$H$36,2,FALSE),"") ->  | BT21: 51
A22: 2025-01-19 | B22: 45676 | C22: 2025-01-19 | D22: =IFERROR(VLOOKUP(B22,Feiertage!$A$3:$B$29,2,FALSE),"") ->  | E22: =IFERROR(VLOOKUP(B22,Mondphasen!$G$23:$H$36,2,FALSE),"") ->  | F22: 3 | G22: 2025-02-19 | H22: 45707 | I22: 2025-02-19 | J22: =IFERROR(VLOOKUP(H22,Feiertage!$A$3:$B$29,2,FALSE),"") ->  | K22: =IFERROR(VLOOKUP(H22,Mondphasen!$G$23:$H$36,2,FALSE),"") ->  | L22: 8 | M22: 2025-03-19 | N22: 45735 | O22: 2025-03-19 | P22: =IFERROR(VLOOKUP(N22,Feiertage!$A$3:$B$29,2,FALSE),"") ->  | Q22: =IFERROR(VLOOKUP(N22,Mondphasen!$G$23:$H$36,2,FALSE),"") ->  | R22: 12 | S22: 2025-04-19 | T22: 45766 | U22: 2025-04-19 | V22: =IFERROR(VLOOKUP(T22,Feiertage!$A$3:$B$29,2,FALSE),"") ->  | W22: =IFERROR(VLOOKUP(T22,Mondphasen!$G$23:$H$36,2,FALSE),"") ->  | X22: 16 | Y22: 2025-05-19 | Z22: 45796 | AA22: 2025-05-19 | AB22: =IFERROR(VLOOKUP(Z22,Feiertage!$A$3:$B$29,2,FALSE),"") ->  | AC22: =IFERROR(VLOOKUP(Z22,Mondphasen!$G$23:$H$36,2,FALSE),"") ->  | AD22: 21 | AE22: 2025-06-19 | AF22: 45827 | AG22: 2025-06-19 | AH22: =IFERROR(VLOOKUP(AF22,Feiertage!$A$3:$B$29,2,FALSE),"") -> Fronleichnam | AI22: =IFERROR(VLOOKUP(AF22,Mondphasen!$G$23:$H$36,2,FALSE),"") ->  | AJ22: 25 | AK22: 2025-07-19 | AL22: 45857 | AM22: 2025-07-19 | AN22: =IFERROR(VLOOKUP(AL22,Feiertage!$A$3:$B$29,2,FALSE),"") ->  | AO22: =IFERROR(VLOOKUP(AL22,Mondphasen!$G$23:$H$36,2,FALSE),"") ->  | AP22: 29 | AQ22: 2025-08-19 | AR22: 45888 | AS22: 2025-08-19 | AT22: =IFERROR(VLOOKUP(AR22,Feiertage!$A$3:$B$29,2,FALSE),"") ->  | AU22: =IFERROR(VLOOKUP(AR22,Mondphasen!$G$23:$H$36,2,FALSE),"") ->  | AV22: 34 | AW22: 2025-09-19 | AX22: 45919 | AY22: 2025-09-19 | AZ22: =IFERROR(VLOOKUP(AX22,Feiertage!$A$3:$B$29,2,FALSE),"") ->  | BA22: =IFERROR(VLOOKUP(AX22,Mondphasen!$G$23:$H$36,2,FALSE),"") ->  | BB22: 38 | BC22: 2025-10-19 | BD22: 45949 | BE22: 2025-10-19 | BF22: =IFERROR(VLOOKUP(BD22,Feiertage!$A$3:$B$29,2,FALSE),"") ->  | BG22: =IFERROR(VLOOKUP(BD22,Mondphasen!$G$23:$H$36,2,FALSE),"") ->  | BH22: 42 | BI22: 2025-11-19 | BJ22: 45980 | BK22: 2025-11-19 | BL22: =IFERROR(VLOOKUP(BJ22,Feiertage!$A$3:$B$29,2,FALSE),"") ->  | BM22: =IFERROR(VLOOKUP(BJ22,Mondphasen!$G$23:$H$36,2,FALSE),"") ->  | BN22: 47 | BO22: 2025-12-19 | BP22: 46010 | BQ22: 2025-12-19 | BR22: =IFERROR(VLOOKUP(BP22,Feiertage!$A$3:$B$29,2,FALSE),"") ->  | BS22: =IFERROR(VLOOKUP(BP22,Mondphasen!$G$23:$H$36,2,FALSE),"") ->  | BT22: 51
A23: 2025-01-20 | B23: 45677 | C23: 2025-01-20 | D23: =IFERROR(VLOOKUP(B23,Feiertage!$A$3:$B$29,2,FALSE),"") ->  | E23: =IFERROR(VLOOKUP(B23,Mondphasen!$G$23:$H$36,2,FALSE),"") ->  | F23: 4 | G23: 2025-02-20 | H23: 45708 | I23: 2025-02-20 | J23: =IFERROR(VLOOKUP(H23,Feiertage!$A$3:$B$29,2,FALSE),"") ->  | K23: =IFERROR(VLOOKUP(H23,Mondphasen!$G$23:$H$36,2,FALSE),"") ->  | L23: 8 | M23: 2025-03-20 | N23: 45736 | O23: 2025-03-20 | P23: =IFERROR(VLOOKUP(N23,Feiertage!$A$3:$B$29,2,FALSE),"") ->  | Q23: =IFERROR(VLOOKUP(N23,Mondphasen!$G$23:$H$36,2,FALSE),"") ->  | R23: 12 | S23: 2025-04-20 | T23: 45767 | U23: 2025-04-20 | V23: =IFERROR(VLOOKUP(T23,Feiertage!$A$3:$B$29,2,FALSE),"") -> Ostersonntag | W23: =IFERROR(VLOOKUP(T23,Mondphasen!$G$23:$H$36,2,FALSE),"") ->  | X23: 16 | Y23: 2025-05-20 | Z23: 45797 | AA23: 2025-05-20 | AB23: =IFERROR(VLOOKUP(Z23,Feiertage!$A$3:$B$29,2,FALSE),"") ->  | AC23: =IFERROR(VLOOKUP(Z23,Mondphasen!$G$23:$H$36,2,FALSE),"") ->  | AD23: 21 | AE23: 2025-06-20 | AF23: 45828 | AG23: 2025-06-20 | AH23: =IFERROR(VLOOKUP(AF23,Feiertage!$A$3:$B$29,2,FALSE),"") ->  | AI23: =IFERROR(VLOOKUP(AF23,Mondphasen!$G$23:$H$36,2,FALSE),"") ->  | AJ23: 25 | AK23: 2025-07-20 | AL23: 45858 | AM23: 2025-07-20 | AN23: =IFERROR(VLOOKUP(AL23,Feiertage!$A$3:$B$29,2,FALSE),"") ->  | AO23: =IFERROR(VLOOKUP(AL23,Mondphasen!$G$23:$H$36,2,FALSE),"") ->  | AP23: 29 | AQ23: 2025-08-20 | AR23: 45889 | AS23: 2025-08-20 | AT23: =IFERROR(VLOOKUP(AR23,Feiertage!$A$3:$B$29,2,FALSE),"") ->  | AU23: =IFERROR(VLOOKUP(AR23,Mondphasen!$G$23:$H$36,2,FALSE),"") ->  | AV23: 34 | AW23: 2025-09-20 | AX23: 45920 | AY23: 2025-09-20 | AZ23: =IFERROR(VLOOKUP(AX23,Feiertage!$A$3:$B$29,2,FALSE),"") ->  | BA23: =IFERROR(VLOOKUP(AX23,Mondphasen!$G$23:$H$36,2,FALSE),"") ->  | BB23: 38 | BC23: 2025-10-20 | BD23: 45950 | BE23: 2025-10-20 | BF23: =IFERROR(VLOOKUP(BD23,Feiertage!$A$3:$B$29,2,FALSE),"") ->  | BG23: =IFERROR(VLOOKUP(BD23,Mondphasen!$G$23:$H$36,2,FALSE),"") ->  | BH23: 43 | BI23: 2025-11-20 | BJ23: 45981 | BK23: 2025-11-20 | BL23: =IFERROR(VLOOKUP(BJ23,Feiertage!$A$3:$B$29,2,FALSE),"") ->  | BM23: =IFERROR(VLOOKUP(BJ23,Mondphasen!$G$23:$H$36,2,FALSE),"") ->  | BN23: 47 | BO23: 2025-12-20 | BP23: 46011 | BQ23: 2025-12-20 | BR23: =IFERROR(VLOOKUP(BP23,Feiertage!$A$3:$B$29,2,FALSE),"") ->  | BS23: =IFERROR(VLOOKUP(BP23,Mondphasen!$G$23:$H$36,2,FALSE),"") ->  | BT23: 51
A24: 2025-01-21 | B24: 45678 | C24: 2025-01-21 | D24: =IFERROR(VLOOKUP(B24,Feiertage!$A$3:$B$29,2,FALSE),"") ->  | E24: =IFERROR(VLOOKUP(B24,Mondphasen!$G$23:$H$36,2,FALSE),"") ->  | F24: 4 | G24: 2025-02-21 | H24: 45709 | I24: 2025-02-21 | J24: =IFERROR(VLOOKUP(H24,Feiertage!$A$3:$B$29,2,FALSE),"") ->  | K24: =IFERROR(VLOOKUP(H24,Mondphasen!$G$23:$H$36,2,FALSE),"") ->  | L24: 8 | M24: 2025-03-21 | N24: 45737 | O24: 2025-03-21 | P24: =IFERROR(VLOOKUP(N24,Feiertage!$A$3:$B$29,2,FALSE),"") ->  | Q24: =IFERROR(VLOOKUP(N24,Mondphasen!$G$23:$H$36,2,FALSE),"") ->  | R24: 12 | S24: 2025-04-21 | T24: 45768 | U24: 2025-04-21 | V24: =IFERROR(VLOOKUP(T24,Feiertage!$A$3:$B$29,2,FALSE),"") -> Ostermontag | W24: =IFERROR(VLOOKUP(T24,Mondphasen!$G$23:$H$36,2,FALSE),"") ->  | X24: 17 | Y24: 2025-05-21 | Z24: 45798 | AA24: 2025-05-21 | AB24: =IFERROR(VLOOKUP(Z24,Feiertage!$A$3:$B$29,2,FALSE),"") ->  | AC24: =IFERROR(VLOOKUP(Z24,Mondphasen!$G$23:$H$36,2,FALSE),"") ->  | AD24: 21 | AE24: 2025-06-21 | AF24: 45829 | AG24: 2025-06-21 | AH24: =IFERROR(VLOOKUP(AF24,Feiertage!$A$3:$B$29,2,FALSE),"") ->  | AI24: =IFERROR(VLOOKUP(AF24,Mondphasen!$G$23:$H$36,2,FALSE),"") ->  | AJ24: 25 | AK24: 2025-07-21 | AL24: 45859 | AM24: 2025-07-21 | AN24: =IFERROR(VLOOKUP(AL24,Feiertage!$A$3:$B$29,2,FALSE),"") ->  | AO24: =IFERROR(VLOOKUP(AL24,Mondphasen!$G$23:$H$36,2,FALSE),"") ->  | AP24: 30 | AQ24: 2025-08-21 | AR24: 45890 | AS24: 2025-08-21 | AT24: =IFERROR(VLOOKUP(AR24,Feiertage!$A$3:$B$29,2,FALSE),"") ->  | AU24: =IFERROR(VLOOKUP(AR24,Mondphasen!$G$23:$H$36,2,FALSE),"") ->  | AV24: 34 | AW24: 2025-09-21 | AX24: 45921 | AY24: 2025-09-21 | AZ24: =IFERROR(VLOOKUP(AX24,Feiertage!$A$3:$B$29,2,FALSE),"") -> Eidg. Buss und Bettag | BA24: =IFERROR(VLOOKUP(AX24,Mondphasen!$G$23:$H$36,2,FALSE),"") ->  | BB24: 38 | BC24: 2025-10-21 | BD24: 45951 | BE24: 2025-10-21 | BF24: =IFERROR(VLOOKUP(BD24,Feiertage!$A$3:$B$29,2,FALSE),"") ->  | BG24: =IFERROR(VLOOKUP(BD24,Mondphasen!$G$23:$H$36,2,FALSE),"") ->  | BH24: 43 | BI24: 2025-11-21 | BJ24: 45982 | BK24: 2025-11-21 | BL24: =IFERROR(VLOOKUP(BJ24,Feiertage!$A$3:$B$29,2,FALSE),"") ->  | BM24: =IFERROR(VLOOKUP(BJ24,Mondphasen!$G$23:$H$36,2,FALSE),"") ->  | BN24: 47 | BO24: 2025-12-21 | BP24: 46012 | BQ24: 2025-12-21 | BR24: =IFERROR(VLOOKUP(BP24,Feiertage!$A$3:$B$29,2,FALSE),"") ->  | BS24: =IFERROR(VLOOKUP(BP24,Mondphasen!$G$23:$H$36,2,FALSE),"") ->  | BT24: 51
A25: 2025-01-22 | B25: 45679 | C25: 2025-01-22 | D25: =IFERROR(VLOOKUP(B25,Feiertage!$A$3:$B$29,2,FALSE),"") ->  | E25: =IFERROR(VLOOKUP(B25,Mondphasen!$G$23:$H$36,2,FALSE),"") ->  | F25: 4 | G25: 2025-02-22 | H25: 45710 | I25: 2025-02-22 | J25: =IFERROR(VLOOKUP(H25,Feiertage!$A$3:$B$29,2,FALSE),"") ->  | K25: =IFERROR(VLOOKUP(H25,Mondphasen!$G$23:$H$36,2,FALSE),"") ->  | L25: 8 | M25: 2025-03-22 | N25: 45738 | O25: 2025-03-22 | P25: =IFERROR(VLOOKUP(N25,Feiertage!$A$3:$B$29,2,FALSE),"") ->  | Q25: =IFERROR(VLOOKUP(N25,Mondphasen!$G$23:$H$36,2,FALSE),"") ->  | R25: 12 | S25: 2025-04-22 | T25: 45769 | U25: 2025-04-22 | V25: =IFERROR(VLOOKUP(T25,Feiertage!$A$3:$B$29,2,FALSE),"") ->  | W25: =IFERROR(VLOOKUP(T25,Mondphasen!$G$23:$H$36,2,FALSE),"") ->  | X25: 17 | Y25: 2025-05-22 | Z25: 45799 | AA25: 2025-05-22 | AB25: =IFERROR(VLOOKUP(Z25,Feiertage!$A$3:$B$29,2,FALSE),"") ->  | AC25: =IFERROR(VLOOKUP(Z25,Mondphasen!$G$23:$H$36,2,FALSE),"") ->  | AD25: 21 | AE25: 2025-06-22 | AF25: 45830 | AG25: 2025-06-22 | AH25: =IFERROR(VLOOKUP(AF25,Feiertage!$A$3:$B$29,2,FALSE),"") ->  | AI25: =IFERROR(VLOOKUP(AF25,Mondphasen!$G$23:$H$36,2,FALSE),"") ->  | AJ25: 25 | AK25: 2025-07-22 | AL25: 45860 | AM25: 2025-07-22 | AN25: =IFERROR(VLOOKUP(AL25,Feiertage!$A$3:$B$29,2,FALSE),"") ->  | AO25: =IFERROR(VLOOKUP(AL25,Mondphasen!$G$23:$H$36,2,FALSE),"") ->  | AP25: 30 | AQ25: 2025-08-22 | AR25: 45891 | AS25: 2025-08-22 | AT25: =IFERROR(VLOOKUP(AR25,Feiertage!$A$3:$B$29,2,FALSE),"") ->  | AU25: =IFERROR(VLOOKUP(AR25,Mondphasen!$G$23:$H$36,2,FALSE),"") ->  | AV25: 34 | AW25: 2025-09-22 | AX25: 45922 | AY25: 2025-09-22 | AZ25: =IFERROR(VLOOKUP(AX25,Feiertage!$A$3:$B$29,2,FALSE),"") ->  | BA25: =IFERROR(VLOOKUP(AX25,Mondphasen!$G$23:$H$36,2,FALSE),"") ->  | BB25: 39 | BC25: 2025-10-22 | BD25: 45952 | BE25: 2025-10-22 | BF25: =IFERROR(VLOOKUP(BD25,Feiertage!$A$3:$B$29,2,FALSE),"") ->  | BG25: =IFERROR(VLOOKUP(BD25,Mondphasen!$G$23:$H$36,2,FALSE),"") ->  | BH25: 43 | BI25: 2025-11-22 | BJ25: 45983 | BK25: 2025-11-22 | BL25: =IFERROR(VLOOKUP(BJ25,Feiertage!$A$3:$B$29,2,FALSE),"") ->  | BM25: =IFERROR(VLOOKUP(BJ25,Mondphasen!$G$23:$H$36,2,FALSE),"") ->  | BN25: 47 | BO25: 2025-12-22 | BP25: 46013 | BQ25: 2025-12-22 | BR25: =IFERROR(VLOOKUP(BP25,Feiertage!$A$3:$B$29,2,FALSE),"") ->  | BS25: =IFERROR(VLOOKUP(BP25,Mondphasen!$G$23:$H$36,2,FALSE),"") ->  | BT25: 52
A26: 2025-01-23 | B26: 45680 | C26: 2025-01-23 | D26: =IFERROR(VLOOKUP(B26,Feiertage!$A$3:$B$29,2,FALSE),"") ->  | E26: =IFERROR(VLOOKUP(B26,Mondphasen!$G$23:$H$36,2,FALSE),"") ->  | F26: 4 | G26: 2025-02-23 | H26: 45711 | I26: 2025-02-23 | J26: =IFERROR(VLOOKUP(H26,Feiertage!$A$3:$B$29,2,FALSE),"") ->  | K26: =IFERROR(VLOOKUP(H26,Mondphasen!$G$23:$H$36,2,FALSE),"") ->  | L26: 8 | M26: 2025-03-23 | N26: 45739 | O26: 2025-03-23 | P26: =IFERROR(VLOOKUP(N26,Feiertage!$A$3:$B$29,2,FALSE),"") ->  | Q26: =IFERROR(VLOOKUP(N26,Mondphasen!$G$23:$H$36,2,FALSE),"") ->  | R26: 12 | S26: 2025-04-23 | T26: 45770 | U26: 2025-04-23 | V26: =IFERROR(VLOOKUP(T26,Feiertage!$A$3:$B$29,2,FALSE),"") ->  | W26: =IFERROR(VLOOKUP(T26,Mondphasen!$G$23:$H$36,2,FALSE),"") ->  | X26: 17 | Y26: 2025-05-23 | Z26: 45800 | AA26: 2025-05-23 | AB26: =IFERROR(VLOOKUP(Z26,Feiertage!$A$3:$B$29,2,FALSE),"") ->  | AC26: =IFERROR(VLOOKUP(Z26,Mondphasen!$G$23:$H$36,2,FALSE),"") ->  | AD26: 21 | AE26: 2025-06-23 | AF26: 45831 | AG26: 2025-06-23 | AH26: =IFERROR(VLOOKUP(AF26,Feiertage!$A$3:$B$29,2,FALSE),"") ->  | AI26: =IFERROR(VLOOKUP(AF26,Mondphasen!$G$23:$H$36,2,FALSE),"") ->  | AJ26: 26 | AK26: 2025-07-23 | AL26: 45861 | AM26: 2025-07-23 | AN26: =IFERROR(VLOOKUP(AL26,Feiertage!$A$3:$B$29,2,FALSE),"") ->  | AO26: =IFERROR(VLOOKUP(AL26,Mondphasen!$G$23:$H$36,2,FALSE),"") ->  | AP26: 30 | AQ26: 2025-08-23 | AR26: 45892 | AS26: 2025-08-23 | AT26: =IFERROR(VLOOKUP(AR26,Feiertage!$A$3:$B$29,2,FALSE),"") ->  | AU26: =IFERROR(VLOOKUP(AR26,Mondphasen!$G$23:$H$36,2,FALSE),"") ->  | AV26: 34 | AW26: 2025-09-23 | AX26: 45923 | AY26: 2025-09-23 | AZ26: =IFERROR(VLOOKUP(AX26,Feiertage!$A$3:$B$29,2,FALSE),"") ->  | BA26: =IFERROR(VLOOKUP(AX26,Mondphasen!$G$23:$H$36,2,FALSE),"") ->  | BB26: 39 | BC26: 2025-10-23 | BD26: 45953 | BE26: 2025-10-23 | BF26: =IFERROR(VLOOKUP(BD26,Feiertage!$A$3:$B$29,2,FALSE),"") ->  | BG26: =IFERROR(VLOOKUP(BD26,Mondphasen!$G$23:$H$36,2,FALSE),"") ->  | BH26: 43 | BI26: 2025-11-23 | BJ26: 45984 | BK26: 2025-11-23 | BL26: =IFERROR(VLOOKUP(BJ26,Feiertage!$A$3:$B$29,2,FALSE),"") ->  | BM26: =IFERROR(VLOOKUP(BJ26,Mondphasen!$G$23:$H$36,2,FALSE),"") ->  | BN26: 47 | BO26: 2025-12-23 | BP26: 46014 | BQ26: 2025-12-23 | BR26: =IFERROR(VLOOKUP(BP26,Feiertage!$A$3:$B$29,2,FALSE),"") ->  | BS26: =IFERROR(VLOOKUP(BP26,Mondphasen!$G$23:$H$36,2,FALSE),"") ->  | BT26: 52
A27: 2025-01-24 | B27: 45681 | C27: 2025-01-24 | D27: =IFERROR(VLOOKUP(B27,Feiertage!$A$3:$B$29,2,FALSE),"") ->  | E27: =IFERROR(VLOOKUP(B27,Mondphasen!$G$23:$H$36,2,FALSE),"") ->  | F27: 4 | G27: 2025-02-24 | H27: 45712 | I27: 2025-02-24 | J27: =IFERROR(VLOOKUP(H27,Feiertage!$A$3:$B$29,2,FALSE),"") ->  | K27: =IFERROR(VLOOKUP(H27,Mondphasen!$G$23:$H$36,2,FALSE),"") ->  | L27: 9 | M27: 2025-03-24 | N27: 45740 | O27: 2025-03-24 | P27: =IFERROR(VLOOKUP(N27,Feiertage!$A$3:$B$29,2,FALSE),"") ->  | Q27: =IFERROR(VLOOKUP(N27,Mondphasen!$G$23:$H$36,2,FALSE),"") ->  | R27: 13 | S27: 2025-04-24 | T27: 45771 | U27: 2025-04-24 | V27: =IFERROR(VLOOKUP(T27,Feiertage!$A$3:$B$29,2,FALSE),"") ->  | W27: =IFERROR(VLOOKUP(T27,Mondphasen!$G$23:$H$36,2,FALSE),"") ->  | X27: 17 | Y27: 2025-05-24 | Z27: 45801 | AA27: 2025-05-24 | AB27: =IFERROR(VLOOKUP(Z27,Feiertage!$A$3:$B$29,2,FALSE),"") ->  | AC27: =IFERROR(VLOOKUP(Z27,Mondphasen!$G$23:$H$36,2,FALSE),"") ->  | AD27: 21 | AE27: 2025-06-24 | AF27: 45832 | AG27: 2025-06-24 | AH27: =IFERROR(VLOOKUP(AF27,Feiertage!$A$3:$B$29,2,FALSE),"") ->  | AI27: =IFERROR(VLOOKUP(AF27,Mondphasen!$G$23:$H$36,2,FALSE),"") ->  | AJ27: 26 | AK27: 2025-07-24 | AL27: 45862 | AM27: 2025-07-24 | AN27: =IFERROR(VLOOKUP(AL27,Feiertage!$A$3:$B$29,2,FALSE),"") ->  | AO27: =IFERROR(VLOOKUP(AL27,Mondphasen!$G$23:$H$36,2,FALSE),"") ->  | AP27: 30 | AQ27: 2025-08-24 | AR27: 45893 | AS27: 2025-08-24 | AT27: =IFERROR(VLOOKUP(AR27,Feiertage!$A$3:$B$29,2,FALSE),"") ->  | AU27: =IFERROR(VLOOKUP(AR27,Mondphasen!$G$23:$H$36,2,FALSE),"") ->  | AV27: 34 | AW27: 2025-09-24 | AX27: 45924 | AY27: 2025-09-24 | AZ27: =IFERROR(VLOOKUP(AX27,Feiertage!$A$3:$B$29,2,FALSE),"") ->  | BA27: =IFERROR(VLOOKUP(AX27,Mondphasen!$G$23:$H$36,2,FALSE),"") ->  | BB27: 39 | BC27: 2025-10-24 | BD27: 45954 | BE27: 2025-10-24 | BF27: =IFERROR(VLOOKUP(BD27,Feiertage!$A$3:$B$29,2,FALSE),"") ->  | BG27: =IFERROR(VLOOKUP(BD27,Mondphasen!$G$23:$H$36,2,FALSE),"") ->  | BH27: 43 | BI27: 2025-11-24 | BJ27: 45985 | BK27: 2025-11-24 | BL27: =IFERROR(VLOOKUP(BJ27,Feiertage!$A$3:$B$29,2,FALSE),"") ->  | BM27: =IFERROR(VLOOKUP(BJ27,Mondphasen!$G$23:$H$36,2,FALSE),"") ->  | BN27: 48 | BO27: 2025-12-24 | BP27: 46015 | BQ27: 2025-12-24 | BR27: =IFERROR(VLOOKUP(BP27,Feiertage!$A$3:$B$29,2,FALSE),"") -> Heilig Abend | BS27: =IFERROR(VLOOKUP(BP27,Mondphasen!$G$23:$H$36,2,FALSE),"") ->  | BT27: 52
A28: 2025-01-25 | B28: 45682 | C28: 2025-01-25 | D28: =IFERROR(VLOOKUP(B28,Feiertage!$A$3:$B$29,2,FALSE),"") ->  | E28: =IFERROR(VLOOKUP(B28,Mondphasen!$G$23:$H$36,2,FALSE),"") ->  | F28: 4 | G28: 2025-02-25 | H28: 45713 | I28: 2025-02-25 | J28: =IFERROR(VLOOKUP(H28,Feiertage!$A$3:$B$29,2,FALSE),"") ->  | K28: =IFERROR(VLOOKUP(H28,Mondphasen!$G$23:$H$36,2,FALSE),"") ->  | L28: 9 | M28: 2025-03-25 | N28: 45741 | O28: 2025-03-25 | P28: =IFERROR(VLOOKUP(N28,Feiertage!$A$3:$B$29,2,FALSE),"") ->  | Q28: =IFERROR(VLOOKUP(N28,Mondphasen!$G$23:$H$36,2,FALSE),"") ->  | R28: 13 | S28: 2025-04-25 | T28: 45772 | U28: 2025-04-25 | V28: =IFERROR(VLOOKUP(T28,Feiertage!$A$3:$B$29,2,FALSE),"") ->  | W28: =IFERROR(VLOOKUP(T28,Mondphasen!$G$23:$H$36,2,FALSE),"") ->  | X28: 17 | Y28: 2025-05-25 | Z28: 45802 | AA28: 2025-05-25 | AB28: =IFERROR(VLOOKUP(Z28,Feiertage!$A$3:$B$29,2,FALSE),"") ->  | AC28: =IFERROR(VLOOKUP(Z28,Mondphasen!$G$23:$H$36,2,FALSE),"") ->  | AD28: 21 | AE28: 2025-06-25 | AF28: 45833 | AG28: 2025-06-25 | AH28: =IFERROR(VLOOKUP(AF28,Feiertage!$A$3:$B$29,2,FALSE),"") ->  | AI28: =IFERROR(VLOOKUP(AF28,Mondphasen!$G$23:$H$36,2,FALSE),"") ->  | AJ28: 26 | AK28: 2025-07-25 | AL28: 45863 | AM28: 2025-07-25 | AN28: =IFERROR(VLOOKUP(AL28,Feiertage!$A$3:$B$29,2,FALSE),"") ->  | AO28: =IFERROR(VLOOKUP(AL28,Mondphasen!$G$23:$H$36,2,FALSE),"") ->  | AP28: 30 | AQ28: 2025-08-25 | AR28: 45894 | AS28: 2025-08-25 | AT28: =IFERROR(VLOOKUP(AR28,Feiertage!$A$3:$B$29,2,FALSE),"") ->  | AU28: =IFERROR(VLOOKUP(AR28,Mondphasen!$G$23:$H$36,2,FALSE),"") ->  | AV28: 35 | AW28: 2025-09-25 | AX28: 45925 | AY28: 2025-09-25 | AZ28: =IFERROR(VLOOKUP(AX28,Feiertage!$A$3:$B$29,2,FALSE),"") ->  | BA28: =IFERROR(VLOOKUP(AX28,Mondphasen!$G$23:$H$36,2,FALSE),"") ->  | BB28: 39 | BC28: 2025-10-25 | BD28: 45955 | BE28: 2025-10-25 | BF28: =IFERROR(VLOOKUP(BD28,Feiertage!$A$3:$B$29,2,FALSE),"") ->  | BG28: =IFERROR(VLOOKUP(BD28,Mondphasen!$G$23:$H$36,2,FALSE),"") ->  | BH28: 43 | BI28: 2025-11-25 | BJ28: 45986 | BK28: 2025-11-25 | BL28: =IFERROR(VLOOKUP(BJ28,Feiertage!$A$3:$B$29,2,FALSE),"") ->  | BM28: =IFERROR(VLOOKUP(BJ28,Mondphasen!$G$23:$H$36,2,FALSE),"") ->  | BN28: 48 | BO28: 2025-12-25 | BP28: 46016 | BQ28: 2025-12-25 | BR28: =IFERROR(VLOOKUP(BP28,Feiertage!$A$3:$B$29,2,FALSE),"") -> Weihnachten | BS28: =IFERROR(VLOOKUP(BP28,Mondphasen!$G$23:$H$36,2,FALSE),"") ->  | BT28: 52
A29: 2025-01-26 | B29: 45683 | C29: 2025-01-26 | D29: =IFERROR(VLOOKUP(B29,Feiertage!$A$3:$B$29,2,FALSE),"") ->  | E29: =IFERROR(VLOOKUP(B29,Mondphasen!$G$23:$H$36,2,FALSE),"") ->  | F29: 4 | G29: 2025-02-26 | H29: 45714 | I29: 2025-02-26 | J29: =IFERROR(VLOOKUP(H29,Feiertage!$A$3:$B$29,2,FALSE),"") ->  | K29: =IFERROR(VLOOKUP(H29,Mondphasen!$G$23:$H$36,2,FALSE),"") ->  | L29: 9 | M29: 2025-03-26 | N29: 45742 | O29: 2025-03-26 | P29: =IFERROR(VLOOKUP(N29,Feiertage!$A$3:$B$29,2,FALSE),"") ->  | Q29: =IFERROR(VLOOKUP(N29,Mondphasen!$G$23:$H$36,2,FALSE),"") ->  | R29: 13 | S29: 2025-04-26 | T29: 45773 | U29: 2025-04-26 | V29: =IFERROR(VLOOKUP(T29,Feiertage!$A$3:$B$29,2,FALSE),"") ->  | W29: =IFERROR(VLOOKUP(T29,Mondphasen!$G$23:$H$36,2,FALSE),"") ->  | X29: 17 | Y29: 2025-05-26 | Z29: 45803 | AA29: 2025-05-26 | AB29: =IFERROR(VLOOKUP(Z29,Feiertage!$A$3:$B$29,2,FALSE),"") ->  | AC29: =IFERROR(VLOOKUP(Z29,Mondphasen!$G$23:$H$36,2,FALSE),"") ->  | AD29: 22 | AE29: 2025-06-26 | AF29: 45834 | AG29: 2025-06-26 | AH29: =IFERROR(VLOOKUP(AF29,Feiertage!$A$3:$B$29,2,FALSE),"") ->  | AI29: =IFERROR(VLOOKUP(AF29,Mondphasen!$G$23:$H$36,2,FALSE),"") ->  | AJ29: 26 | AK29: 2025-07-26 | AL29: 45864 | AM29: 2025-07-26 | AN29: =IFERROR(VLOOKUP(AL29,Feiertage!$A$3:$B$29,2,FALSE),"") ->  | AO29: =IFERROR(VLOOKUP(AL29,Mondphasen!$G$23:$H$36,2,FALSE),"") ->  | AP29: 30 | AQ29: 2025-08-26 | AR29: 45895 | AS29: 2025-08-26 | AT29: =IFERROR(VLOOKUP(AR29,Feiertage!$A$3:$B$29,2,FALSE),"") ->  | AU29: =IFERROR(VLOOKUP(AR29,Mondphasen!$G$23:$H$36,2,FALSE),"") ->  | AV29: 35 | AW29: 2025-09-26 | AX29: 45926 | AY29: 2025-09-26 | AZ29: =IFERROR(VLOOKUP(AX29,Feiertage!$A$3:$B$29,2,FALSE),"") ->  | BA29: =IFERROR(VLOOKUP(AX29,Mondphasen!$G$23:$H$36,2,FALSE),"") ->  | BB29: 39 | BC29: 2025-10-26 | BD29: 45956 | BE29: 2025-10-26 | BF29: =IFERROR(VLOOKUP(BD29,Feiertage!$A$3:$B$29,2,FALSE),"") ->  | BG29: =IFERROR(VLOOKUP(BD29,Mondphasen!$G$23:$H$36,2,FALSE),"") ->  | BH29: 43 | BI29: 2025-11-26 | BJ29: 45987 | BK29: 2025-11-26 | BL29: =IFERROR(VLOOKUP(BJ29,Feiertage!$A$3:$B$29,2,FALSE),"") ->  | BM29: =IFERROR(VLOOKUP(BJ29,Mondphasen!$G$23:$H$36,2,FALSE),"") ->  | BN29: 48 | BO29: 2025-12-26 | BP29: 46017 | BQ29: 2025-12-26 | BR29: =IFERROR(VLOOKUP(BP29,Feiertage!$A$3:$B$29,2,FALSE),"") -> Stephanstag | BS29: =IFERROR(VLOOKUP(BP29,Mondphasen!$G$23:$H$36,2,FALSE),"") ->  | BT29: 52
A30: 2025-01-27 | B30: 45684 | C30: 2025-01-27 | D30: =IFERROR(VLOOKUP(B30,Feiertage!$A$3:$B$29,2,FALSE),"") ->  | E30: =IFERROR(VLOOKUP(B30,Mondphasen!$G$23:$H$36,2,FALSE),"") ->  | F30: 5 | G30: 2025-02-27 | H30: 45715 | I30: 2025-02-27 | J30: =IFERROR(VLOOKUP(H30,Feiertage!$A$3:$B$29,2,FALSE),"") ->  | K30: =IFERROR(VLOOKUP(H30,Mondphasen!$G$23:$H$36,2,FALSE),"") ->  | L30: 9 | M30: 2025-03-27 | N30: 45743 | O30: 2025-03-27 | P30: =IFERROR(VLOOKUP(N30,Feiertage!$A$3:$B$29,2,FALSE),"") ->  | Q30: =IFERROR(VLOOKUP(N30,Mondphasen!$G$23:$H$36,2,FALSE),"") ->  | R30: 13 | S30: 2025-04-27 | T30: 45774 | U30: 2025-04-27 | V30: =IFERROR(VLOOKUP(T30,Feiertage!$A$3:$B$29,2,FALSE),"") ->  | W30: =IFERROR(VLOOKUP(T30,Mondphasen!$G$23:$H$36,2,FALSE),"") ->  | X30: 17 | Y30: 2025-05-27 | Z30: 45804 | AA30: 2025-05-27 | AB30: =IFERROR(VLOOKUP(Z30,Feiertage!$A$3:$B$29,2,FALSE),"") ->  | AC30: =IFERROR(VLOOKUP(Z30,Mondphasen!$G$23:$H$36,2,FALSE),"") ->  | AD30: 22 | AE30: 2025-06-27 | AF30: 45835 | AG30: 2025-06-27 | AH30: =IFERROR(VLOOKUP(AF30,Feiertage!$A$3:$B$29,2,FALSE),"") ->  | AI30: =IFERROR(VLOOKUP(AF30,Mondphasen!$G$23:$H$36,2,FALSE),"") ->  | AJ30: 26 | AK30: 2025-07-27 | AL30: 45865 | AM30: 2025-07-27 | AN30: =IFERROR(VLOOKUP(AL30,Feiertage!$A$3:$B$29,2,FALSE),"") ->  | AO30: =IFERROR(VLOOKUP(AL30,Mondphasen!$G$23:$H$36,2,FALSE),"") ->  | AP30: 30 | AQ30: 2025-08-27 | AR30: 45896 | AS30: 2025-08-27 | AT30: =IFERROR(VLOOKUP(AR30,Feiertage!$A$3:$B$29,2,FALSE),"") ->  | AU30: =IFERROR(VLOOKUP(AR30,Mondphasen!$G$23:$H$36,2,FALSE),"") ->  | AV30: 35 | AW30: 2025-09-27 | AX30: 45927 | AY30: 2025-09-27 | AZ30: =IFERROR(VLOOKUP(AX30,Feiertage!$A$3:$B$29,2,FALSE),"") ->  | BA30: =IFERROR(VLOOKUP(AX30,Mondphasen!$G$23:$H$36,2,FALSE),"") ->  | BB30: 39 | BC30: 2025-10-27 | BD30: 45957 | BE30: 2025-10-27 | BF30: =IFERROR(VLOOKUP(BD30,Feiertage!$A$3:$B$29,2,FALSE),"") ->  | BG30: =IFERROR(VLOOKUP(BD30,Mondphasen!$G$23:$H$36,2,FALSE),"") ->  | BH30: 44 | BI30: 2025-11-27 | BJ30: 45988 | BK30: 2025-11-27 | BL30: =IFERROR(VLOOKUP(BJ30,Feiertage!$A$3:$B$29,2,FALSE),"") ->  | BM30: =IFERROR(VLOOKUP(BJ30,Mondphasen!$G$23:$H$36,2,FALSE),"") ->  | BN30: 48 | BO30: 2025-12-27 | BP30: 46018 | BQ30: 2025-12-27 | BR30: =IFERROR(VLOOKUP(BP30,Feiertage!$A$3:$B$29,2,FALSE),"") ->  | BS30: =IFERROR(VLOOKUP(BP30,Mondphasen!$G$23:$H$36,2,FALSE),"") ->  | BT30: 52
A31: 2025-01-28 | B31: 45685 | C31: 2025-01-28 | D31: =IFERROR(VLOOKUP(B31,Feiertage!$A$3:$B$29,2,FALSE),"") ->  | E31: =IFERROR(VLOOKUP(B31,Mondphasen!$G$23:$H$36,2,FALSE),"") ->  | F31: 5 | G31: 2025-02-28 | H31: 45716 | I31: 2025-02-28 | J31: =IFERROR(VLOOKUP(H31,Feiertage!$A$3:$B$29,2,FALSE),"") ->  | K31: =IFERROR(VLOOKUP(H31,Mondphasen!$G$23:$H$36,2,FALSE),"") ->  | L31: 9 | M31: 2025-03-28 | N31: 45744 | O31: 2025-03-28 | P31: =IFERROR(VLOOKUP(N31,Feiertage!$A$3:$B$29,2,FALSE),"") ->  | Q31: =IFERROR(VLOOKUP(N31,Mondphasen!$G$23:$H$36,2,FALSE),"") ->  | R31: 13 | S31: 2025-04-28 | T31: 45775 | U31: 2025-04-28 | V31: =IFERROR(VLOOKUP(T31,Feiertage!$A$3:$B$29,2,FALSE),"") ->  | W31: =IFERROR(VLOOKUP(T31,Mondphasen!$G$23:$H$36,2,FALSE),"") ->  | X31: 18 | Y31: 2025-05-28 | Z31: 45805 | AA31: 2025-05-28 | AB31: =IFERROR(VLOOKUP(Z31,Feiertage!$A$3:$B$29,2,FALSE),"") ->  | AC31: =IFERROR(VLOOKUP(Z31,Mondphasen!$G$23:$H$36,2,FALSE),"") ->  | AD31: 22 | AE31: 2025-06-28 | AF31: 45836 | AG31: 2025-06-28 | AH31: =IFERROR(VLOOKUP(AF31,Feiertage!$A$3:$B$29,2,FALSE),"") ->  | AI31: =IFERROR(VLOOKUP(AF31,Mondphasen!$G$23:$H$36,2,FALSE),"") ->  | AJ31: 26 | AK31: 2025-07-28 | AL31: 45866 | AM31: 2025-07-28 | AN31: =IFERROR(VLOOKUP(AL31,Feiertage!$A$3:$B$29,2,FALSE),"") ->  | AO31: =IFERROR(VLOOKUP(AL31,Mondphasen!$G$23:$H$36,2,FALSE),"") ->  | AP31: 31 | AQ31: 2025-08-28 | AR31: 45897 | AS31: 2025-08-28 | AT31: =IFERROR(VLOOKUP(AR31,Feiertage!$A$3:$B$29,2,FALSE),"") ->  | AU31: =IFERROR(VLOOKUP(AR31,Mondphasen!$G$23:$H$36,2,FALSE),"") ->  | AV31: 35 | AW31: 2025-09-28 | AX31: 45928 | AY31: 2025-09-28 | AZ31: =IFERROR(VLOOKUP(AX31,Feiertage!$A$3:$B$29,2,FALSE),"") ->  | BA31: =IFERROR(VLOOKUP(AX31,Mondphasen!$G$23:$H$36,2,FALSE),"") ->  | BB31: 39 | BC31: 2025-10-28 | BD31: 45958 | BE31: 2025-10-28 | BF31: =IFERROR(VLOOKUP(BD31,Feiertage!$A$3:$B$29,2,FALSE),"") ->  | BG31: =IFERROR(VLOOKUP(BD31,Mondphasen!$G$23:$H$36,2,FALSE),"") ->  | BH31: 44 | BI31: 2025-11-28 | BJ31: 45989 | BK31: 2025-11-28 | BL31: =IFERROR(VLOOKUP(BJ31,Feiertage!$A$3:$B$29,2,FALSE),"") ->  | BM31: =IFERROR(VLOOKUP(BJ31,Mondphasen!$G$23:$H$36,2,FALSE),"") ->  | BN31: 48 | BO31: 2025-12-28 | BP31: 46019 | BQ31: 2025-12-28 | BR31: =IFERROR(VLOOKUP(BP31,Feiertage!$A$3:$B$29,2,FALSE),"") ->  | BS31: =IFERROR(VLOOKUP(BP31,Mondphasen!$G$23:$H$36,2,FALSE),"") ->  | BT31: 52
A32: 2025-01-29 | B32: 45686 | C32: 2025-01-29 | D32: =IFERROR(VLOOKUP(B32,Feiertage!$A$3:$B$29,2,FALSE),"") ->  | E32: =IFERROR(VLOOKUP(B32,Mondphasen!$G$23:$H$36,2,FALSE),"") ->  | F32: 5 | J32: =IFERROR(VLOOKUP(H32,Feiertage!$A$3:$B$29,2,FALSE),"") ->  | K32: =IFERROR(VLOOKUP(H32,Mondphasen!$G$23:$H$36,2,FALSE),"") ->  | M32: 2025-03-29 | N32: 45745 | O32: 2025-03-29 | P32: =IFERROR(VLOOKUP(N32,Feiertage!$A$3:$B$29,2,FALSE),"") ->  | Q32: =IFERROR(VLOOKUP(N32,Mondphasen!$G$23:$H$36,2,FALSE),"") ->  | R32: 13 | S32: 2025-04-29 | T32: 45776 | U32: 2025-04-29 | V32: =IFERROR(VLOOKUP(T32,Feiertage!$A$3:$B$29,2,FALSE),"") ->  | W32: =IFERROR(VLOOKUP(T32,Mondphasen!$G$23:$H$36,2,FALSE),"") ->  | X32: 18 | Y32: 2025-05-29 | Z32: 45806 | AA32: 2025-05-29 | AB32: =IFERROR(VLOOKUP(Z32,Feiertage!$A$3:$B$29,2,FALSE),"") -> Auffahrt | AC32: =IFERROR(VLOOKUP(Z32,Mondphasen!$G$23:$H$36,2,FALSE),"") ->  | AD32: 22 | AE32: 2025-06-29 | AF32: 45837 | AG32: 2025-06-29 | AH32: =IFERROR(VLOOKUP(AF32,Feiertage!$A$3:$B$29,2,FALSE),"") ->  | AI32: =IFERROR(VLOOKUP(AF32,Mondphasen!$G$23:$H$36,2,FALSE),"") ->  | AJ32: 26 | AK32: 2025-07-29 | AL32: 45867 | AM32: 2025-07-29 | AN32: =IFERROR(VLOOKUP(AL32,Feiertage!$A$3:$B$29,2,FALSE),"") ->  | AO32: =IFERROR(VLOOKUP(AL32,Mondphasen!$G$23:$H$36,2,FALSE),"") ->  | AP32: 31 | AQ32: 2025-08-29 | AR32: 45898 | AS32: 2025-08-29 | AT32: =IFERROR(VLOOKUP(AR32,Feiertage!$A$3:$B$29,2,FALSE),"") ->  | AU32: =IFERROR(VLOOKUP(AR32,Mondphasen!$G$23:$H$36,2,FALSE),"") ->  | AV32: 35 | AW32: 2025-09-29 | AX32: 45929 | AY32: 2025-09-29 | AZ32: =IFERROR(VLOOKUP(AX32,Feiertage!$A$3:$B$29,2,FALSE),"") ->  | BA32: =IFERROR(VLOOKUP(AX32,Mondphasen!$G$23:$H$36,2,FALSE),"") ->  | BB32: 40 | BC32: 2025-10-29 | BD32: 45959 | BE32: 2025-10-29 | BF32: =IFERROR(VLOOKUP(BD32,Feiertage!$A$3:$B$29,2,FALSE),"") ->  | BG32: =IFERROR(VLOOKUP(BD32,Mondphasen!$G$23:$H$36,2,FALSE),"") ->  | BH32: 44 | BI32: 2025-11-29 | BJ32: 45990 | BK32: 2025-11-29 | BL32: =IFERROR(VLOOKUP(BJ32,Feiertage!$A$3:$B$29,2,FALSE),"") ->  | BM32: =IFERROR(VLOOKUP(BJ32,Mondphasen!$G$23:$H$36,2,FALSE),"") ->  | BN32: 48 | BO32: 2025-12-29 | BP32: 46020 | BQ32: 2025-12-29 | BR32: =IFERROR(VLOOKUP(BP32,Feiertage!$A$3:$B$29,2,FALSE),"") ->  | BS32: =IFERROR(VLOOKUP(BP32,Mondphasen!$G$23:$H$36,2,FALSE),"") ->  | BT32: 1
A33: 2025-01-30 | B33: 45687 | C33: 2025-01-30 | D33: =IFERROR(VLOOKUP(B33,Feiertage!$A$3:$B$29,2,FALSE),"") ->  | E33: =IFERROR(VLOOKUP(B33,Mondphasen!$G$23:$H$36,2,FALSE),"") ->  | F33: 5 | J33: =IFERROR(VLOOKUP(H33,Feiertage!$A$3:$B$29,2,FALSE),"") ->  | K33: =IFERROR(VLOOKUP(H33,Mondphasen!$G$23:$H$36,2,FALSE),"") ->  | M33: 2025-03-30 | N33: 45746 | O33: 2025-03-30 | P33: =IFERROR(VLOOKUP(N33,Feiertage!$A$3:$B$29,2,FALSE),"") ->  | Q33: =IFERROR(VLOOKUP(N33,Mondphasen!$G$23:$H$36,2,FALSE),"") ->  | R33: 13 | S33: 2025-04-30 | T33: 45777 | U33: 2025-04-30 | V33: =IFERROR(VLOOKUP(T33,Feiertage!$A$3:$B$29,2,FALSE),"") ->  | W33: =IFERROR(VLOOKUP(T33,Mondphasen!$G$23:$H$36,2,FALSE),"") ->  | X33: 18 | Y33: 2025-05-30 | Z33: 45807 | AA33: 2025-05-30 | AB33: =IFERROR(VLOOKUP(Z33,Feiertage!$A$3:$B$29,2,FALSE),"") ->  | AC33: =IFERROR(VLOOKUP(Z33,Mondphasen!$G$23:$H$36,2,FALSE),"") ->  | AD33: 22 | AE33: 2025-06-30 | AF33: 45838 | AG33: 2025-06-30 | AH33: =IFERROR(VLOOKUP(AF33,Feiertage!$A$3:$B$29,2,FALSE),"") ->  | AI33: =IFERROR(VLOOKUP(AF33,Mondphasen!$G$23:$H$36,2,FALSE),"") ->  | AJ33: 27 | AK33: 2025-07-30 | AL33: 45868 | AM33: 2025-07-30 | AN33: =IFERROR(VLOOKUP(AL33,Feiertage!$A$3:$B$29,2,FALSE),"") ->  | AO33: =IFERROR(VLOOKUP(AL33,Mondphasen!$G$23:$H$36,2,FALSE),"") ->  | AP33: 31 | AQ33: 2025-08-30 | AR33: 45899 | AS33: 2025-08-30 | AT33: =IFERROR(VLOOKUP(AR33,Feiertage!$A$3:$B$29,2,FALSE),"") ->  | AU33: =IFERROR(VLOOKUP(AR33,Mondphasen!$G$23:$H$36,2,FALSE),"") ->  | AV33: 35 | AW33: 2025-09-30 | AX33: 45930 | AY33: 2025-09-30 | AZ33: =IFERROR(VLOOKUP(AX33,Feiertage!$A$3:$B$29,2,FALSE),"") ->  | BA33: =IFERROR(VLOOKUP(AX33,Mondphasen!$G$23:$H$36,2,FALSE),"") ->  | BB33: 40 | BC33: 2025-10-30 | BD33: 45960 | BE33: 2025-10-30 | BF33: =IFERROR(VLOOKUP(BD33,Feiertage!$A$3:$B$29,2,FALSE),"") ->  | BG33: =IFERROR(VLOOKUP(BD33,Mondphasen!$G$23:$H$36,2,FALSE),"") ->  | BH33: 44 | BI33: 2025-11-30 | BJ33: 45991 | BK33: 2025-11-30 | BL33: =IFERROR(VLOOKUP(BJ33,Feiertage!$A$3:$B$29,2,FALSE),"") ->  | BM33: =IFERROR(VLOOKUP(BJ33,Mondphasen!$G$23:$H$36,2,FALSE),"") ->  | BN33: 48 | BO33: 2025-12-30 | BP33: 46021 | BQ33: 2025-12-30 | BR33: =IFERROR(VLOOKUP(BP33,Feiertage!$A$3:$B$29,2,FALSE),"") ->  | BS33: =IFERROR(VLOOKUP(BP33,Mondphasen!$G$23:$H$36,2,FALSE),"") ->  | BT33: 1
A34: 2025-01-31 | B34: 45688 | C34: 2025-01-31 | D34: =IFERROR(VLOOKUP(B34,Feiertage!$A$3:$B$29,2,FALSE),"") ->  | E34: =IFERROR(VLOOKUP(B34,Mondphasen!$G$23:$H$36,2,FALSE),"") ->  | F34: 5 | J34: =IFERROR(VLOOKUP(H34,Feiertage!$A$3:$B$29,2,FALSE),"") ->  | K34: =IFERROR(VLOOKUP(H34,Mondphasen!$G$23:$H$36,2,FALSE),"") ->  | M34: 2025-03-31 | N34: 45747 | O34: 2025-03-31 | P34: =IFERROR(VLOOKUP(N34,Feiertage!$A$3:$B$29,2,FALSE),"") ->  | Q34: =IFERROR(VLOOKUP(N34,Mondphasen!$G$23:$H$36,2,FALSE),"") ->  | R34: 14 | V34: =IFERROR(VLOOKUP(T34,Feiertage!$A$3:$B$29,2,FALSE),"") ->  | W34: =IFERROR(VLOOKUP(T34,Mondphasen!$G$23:$H$36,2,FALSE),"") ->  | Y34: 2025-05-31 | Z34: 45808 | AA34: 2025-05-31 | AB34: =IFERROR(VLOOKUP(Z34,Feiertage!$A$3:$B$29,2,FALSE),"") ->  | AC34: =IFERROR(VLOOKUP(Z34,Mondphasen!$G$23:$H$36,2,FALSE),"") ->  | AD34: 22 | AH34: =IFERROR(VLOOKUP(AF34,Feiertage!$A$3:$B$29,2,FALSE),"") ->  | AI34: =IFERROR(VLOOKUP(AF34,Mondphasen!$G$23:$H$36,2,FALSE),"") ->  | AK34: 2025-07-31 | AL34: 45869 | AM34: 2025-07-31 | AN34: =IFERROR(VLOOKUP(AL34,Feiertage!$A$3:$B$29,2,FALSE),"") ->  | AO34: =IFERROR(VLOOKUP(AL34,Mondphasen!$G$23:$H$36,2,FALSE),"") ->  | AP34: 31 | AQ34: 2025-08-31 | AR34: 45900 | AS34: 2025-08-31 | AT34: =IFERROR(VLOOKUP(AR34,Feiertage!$A$3:$B$29,2,FALSE),"") ->  | AU34: =IFERROR(VLOOKUP(AR34,Mondphasen!$G$23:$H$36,2,FALSE),"") ->  | AV34: 35 | AZ34: =IFERROR(VLOOKUP(AX34,Feiertage!$A$3:$B$29,2,FALSE),"") ->  | BA34: =IFERROR(VLOOKUP(AX34,Mondphasen!$G$23:$H$36,2,FALSE),"") ->  | BC34: 2025-10-31 | BD34: 45961 | BE34: 2025-10-31 | BF34: =IFERROR(VLOOKUP(BD34,Feiertage!$A$3:$B$29,2,FALSE),"") ->  | BG34: =IFERROR(VLOOKUP(BD34,Mondphasen!$G$23:$H$36,2,FALSE),"") ->  | BH34: 44 | BL34: =IFERROR(VLOOKUP(BJ34,Feiertage!$A$3:$B$29,2,FALSE),"") ->  | BM34: =IFERROR(VLOOKUP(BJ34,Mondphasen!$G$23:$H$36,2,FALSE),"") ->  | BO34: 2025-12-31 | BP34: 46022 | BQ34: 2025-12-31 | BR34: =IFERROR(VLOOKUP(BP34,Feiertage!$A$3:$B$29,2,FALSE),"") -> Silvester | BS34: =IFERROR(VLOOKUP(BP34,Mondphasen!$G$23:$H$36,2,FALSE),"") ->  | BT34: 1

Sheet Feiertage
A1: =IF(COUNTIF($P$3:$P$28,$A$2),"Schaltjahr","") -> 
A2: =YEAR(Kalender!A4) -> 2025 | B2: =A2 -> 2025 | E2: Gesetzlicher Feiertag | P2: Schaltjahre
P3: 2016
A4: =C4 -> 45658 | B4: Neujahr | C4: =DATE(B2,1,1) -> 2025-01-01 | D4: =WEEKDAY(C4,1) -> 1900-01-04 | E4: Ja | G4: =I4 -> 45658 | H4: Neujahr | I4: =DATE($B$2,1,1) -> 2025-01-01 | J4: =WEEKDAY(I4,1) -> 1900-01-04 | K4: Ja | P4: =P3+4 -> 2020
A5: 45659 | B5: Berchtoldstag | C5: =DATE(B2,1,2) -> 2025-01-02 | D5: 1900-01-05 | E5: Ja | G5: 45659 | H5: Berchtoldstag | I5: =DATE($B$2,1,2) -> 2025-01-02 | J5: 1900-01-05 | K5: Ja | P5: =P4+4 -> 2024
A6: 45663 | B6: Heilige drei Könige | C6: =DATE(B2,1,6) -> 2025-01-06 | D6: 1900-01-02 | P6: 2028
A7: 45719 | B7: Fasnacht-Montag | C7: =C13-48 -> 2025-03-03 | D7: 1900-01-02 | P7: 2032
A8: 45720 | B8: Fasnacht-Dienstag | C8: =C13-47 -> 2025-03-04 | D8: 1900-01-03 | P8: 2036
A9: 45721 | B9: Aschermittwoch | C9: =C13-46 -> 2025-03-05 | D9: 1900-01-04 | P9: 2040
A10: 45760 | B10: Palmsonntag | C10: =C13-7 -> 2025-04-13 | D10: 1900-01-01 | P10: 2044
A11: 45764 | B11: Grün-Donnerstag | C11: =C13-3 -> 2025-04-17 | D11: 1900-01-05 | P11: 2048
A12: 45765 | B12: Karfreitag | C12: =C13-2 -> 2025-04-18 | D12: 1900-01-06 | E12: Ja | G12: 45765 | H12: Karfreitag | I12: =L13-2 -> 2025-04-18 | J12: 1900-01-06 | K12: Ja | P12: 2052
A13: 45767 | B13: Ostersonntag | C13: =ROUND((DAY(MINUTE(B2/38)/2+55)&".4."&B2)/7,)*7-6 -> 2025-04-20 | D13: 1900-01-01 | G13: =L13 -> 45767 | H13: Ostersonntag | J13: =WEEKDAY(L13,1) -> 1900-01-01 | L13: =ROUND((DAY(MINUTE($B$2/38)/2+55)&".4."&$B$2)/7,)*7-6 -> 2025-04-20 | P13: 2056
A14: 45768 | B14: Ostermontag | C14: =C13+1 -> 2025-04-21 | D14: 1900-01-02 | E14: Ja | G14: 45768 | H14: Ostermontag | I14: =L13+1 -> 2025-04-21 | J14: 1900-01-02 | K14: Ja | P14: 2060
A15: 45778 | B15: Tag der Arbeit | C15: =DATE(B2,5,1) -> 2025-05-01 | D15: 1900-01-05 | P15: 2064
A16: =C16 -> 45788 | B16: Muttertag | C16: =C15+14-WEEKDAY(C15,2) -> 2025-05-11 | D16: =WEEKDAY(C16,1) -> 1900-01-01 | P16: 2068
A17: 45806 | B17: Auffahrt | C17: =C13+39 -> 2025-05-29 | D17: 1900-01-05 | E17: Ja | G17: 45806 | H17: Auffahrt | I17: =L13+39 -> 2025-05-29 | J17: 1900-01-05 | K17: Ja | P17: 2072
A18: 45816 | B18: Pfingsten | C18: =C13+49 -> 2025-06-08 | D18: 1900-01-01 | P18: 2076
A19: 45817 | B19: Pfingst-Montag | C19: =C13+50 -> 2025-06-09 | D19: 1900-01-02 | E19: Ja | G19: 45817 | H19: Pfingst-Montag | I19: =L13+50 -> 2025-06-09 | J19: 1900-01-02 | K19: Ja | P19: 2080
A20: =C20 -> 45827 | B20: Fronleichnam | C20: =C13+60 -> 2025-06-19 | D20: =WEEKDAY(C20,1) -> 1900-01-05 | P20: 2084
A21: 45870 | B21: National-Feiertag CH | C21: =DATE(B2,8,1) -> 2025-08-01 | D21: 1900-01-06 | E21: Ja | G21: =I21 -> 45870 | H21: National-Feiertag CH | I21: =DATE($B$2,8,1) -> 2025-08-01 | J21: 1900-01-06 | K21: Ja | P21: 2088
A22: 45884 | B22: Maria-Himmelfahrt | C22: =DATE(B2,8,15) -> 2025-08-15 | D22: 1900-01-06 | P22: 2092
A23: =C23 -> 45921 | B23: Eidg. Buss und Bettag | C23: =DATE($A$2,9,1)+21-WEEKDAY(DATE($A$2,9,1),2) -> 2025-09-21 | D23: =WEEKDAY(C23,1) -> 1900-01-01 | E23: Ja | G23: 45921 | H23: Eidg. Buss und Bettag | I23: =DATE($A$2,9,1)+21-WEEKDAY(DATE($A$2,9,1),2) -> 2025-09-21 | J23: 1900-01-01 | K23: Ja | P23: 2096
A24: 45997 | B24: Samichlaus | C24: =DATE(B2,12,6) -> 2025-12-06 | D24: 1900-01-07 | P24: =P23+4 -> 2100
A25: 45962 | B25: Allerheiligen | C25: =DATE(B2,11,1) -> 2025-11-01 | D25: 1900-01-07
A26: 46015 | B26: Heilig Abend | C26: =DATE(B2,12,24) -> 2025-12-24 | D26: 1900-01-04
A27: 46016 | B27: Weihnachten | C27: =DATE(B2,12,25) -> 2025-12-25 | D27: 1900-01-05 | E27: Ja | G27: 46016 | H27: Weihnachten | I27: =DATE($B$2,12,25) -> 2025-12-25 | J27: 1900-01-05 | K27: Ja
A28: 46017 | B28: Stephanstag | C28: =DATE(B2,12,26) -> 2025-12-26 | D28: 1900-01-06 | E28: Ja | G28: 46017 | H28: Stephanstag | I28: =DATE($B$2,12,26) -> 2025-12-26 | J28: 1900-01-06 | K28: Ja
A29: 46022 | B29: Silvester | C29: =DATE(B2,12,31) -> 2025-12-31 | D29: 1900-01-04

Sheet Mondphasen
A1: Jahr : | B1: =Kalender!L1 -> 2025
A2: Zeitzone : | B2: 2
A4: Neumond | B4: erstes Viertel | C4: Vollmond | D4: letztes Viertel
A5: =Tabelle!H1-2415018.5+Mondphasen!$B$2/24 -> 2024-12-31T00:29:33.340 | B5: =Tabelle!H2-2415018.5+Mondphasen!$B$2/24 -> 2025-01-07T01:58:30.509 | C5: =Tabelle!H3-2415018.5+Mondphasen!$B$2/24 -> 2025-01-14T00:28:03.460 | D5: =Tabelle!H4-2415018.5+Mondphasen!$B$2/24 -> 2025-01-21T22:29:46.106
A6: =Tabelle!H5-2415018.5+Mondphasen!$B$2/24 -> 2025-01-29T14:38:52.321 | B6: =Tabelle!H6-2415018.5+Mondphasen!$B$2/24 -> 2025-02-05T10:05:46.114 | C6: =Tabelle!H7-2415018.5+Mondphasen!$B$2/24 -> 2025-02-12T15:56:28.619 | D6: =Tabelle!H8-2415018.5+Mondphasen!$B$2/24 -> 2025-02-20T19:32:58.370
A7: =Tabelle!H9-2415018.5+Mondphasen!$B$2/24 -> 2025-02-28T02:45:29.318 | B7: =Tabelle!H10-2415018.5+Mondphasen!$B$2/24 -> 2025-03-06T18:34:49.193 | C7: =Tabelle!H11-2415018.5+Mondphasen!$B$2/24 -> 2025-03-14T08:56:52.486 | D7: =Tabelle!H12-2415018.5+Mondphasen!$B$2/24 -> 2025-03-22T13:34:05.249
A8: =Tabelle!H13-2415018.5+Mondphasen!$B$2/24 -> 2025-03-29T12:57:50.390 | B8: =Tabelle!H14-2415018.5+Mondphasen!$B$2/24 -> 2025-04-05T04:16:55.303 | C8: =Tabelle!H15-2415018.5+Mondphasen!$B$2/24 -> 2025-04-13T02:22:41.046 | D8: =Tabelle!H16-2415018.5+Mondphasen!$B$2/24 -> 2025-04-21T03:40:28.997
A9: =Tabelle!H17-2415018.5+Mondphasen!$B$2/24 -> 2025-04-27T21:33:08.887 | B9: =Tabelle!H18-2415018.5+Mondphasen!$B$2/24 -> 2025-05-04T15:54:20.625 | C9: =Tabelle!H19-2415018.5+Mondphasen!$B$2/24 -> 2025-05-12T18:57:03.248 | D9: =Tabelle!H20-2415018.5+Mondphasen!$B$2/24 -> 2025-05-20T14:00:43.517
A10: =Tabelle!H21-2415018.5+Mondphasen!$B$2/24 -> 2025-05-27T05:05:33.879 | B10: =Tabelle!H22-2415018.5+Mondphasen!$B$2/24 -> 2025-06-03T05:44:09.159 | C10: =Tabelle!H23-2415018.5+Mondphasen!$B$2/24 -> 2025-06-11T09:46:41.265 | D10: =Tabelle!H24-2415018.5+Mondphasen!$B$2/24 -> 2025-06-18T21:20:18.554
A11: =Tabelle!H25-2415018.5+Mondphasen!$B$2/24 -> 2025-06-25T12:33:28.033 | B11: =Tabelle!H26-2415018.5+Mondphasen!$B$2/24 -> 2025-07-02T21:32:17.992 | C11: =Tabelle!H27-2415018.5+Mondphasen!$B$2/24 -> 2025-07-10T22:39:23.870 | D11: =Tabelle!H28-2415018.5+Mondphasen!$B$2/24 -> 2025-07-18T02:40:49.322
A12: =Tabelle!H29-2415018.5+Mondphasen!$B$2/24 -> 2025-07-24T21:11:38.008 | B12: =Tabelle!H30-2415018.5+Mondphasen!$B$2/24 -> 2025-08-01T14:41:34.201 | C12: =Tabelle!H31-2415018.5+Mondphasen!$B$2/24 -> 2025-08-09T09:56:08.386 | D12: =Tabelle!H32-2415018.5+Mondphasen!$B$2/24 -> 2025-08-16T07:15:42.909
A13: =Tabelle!H33-2415018.5+Mondphasen!$B$2/24 -> 2025-08-23T08:07:40.192 | B13: =Tabelle!H34-2415018.5+Mondphasen!$B$2/24 -> 2025-08-31T08:25:11.721 | C13: =Tabelle!H35-2415018.5+Mondphasen!$B$2/24 -> 2025-09-07T20:09:36.200 | D13: =Tabelle!H36-2415018.5+Mondphasen!$B$2/24 -> 2025-09-14T12:33:47.990
A14: =Tabelle!H37-2415018.5+Mondphasen!$B$2/24 -> 2025-09-21T21:56:19.302 | B14: =Tabelle!H38-2415018.5+Mondphasen!$B$2/24 -> 2025-09-30T01:55:06.199 | C14: =Tabelle!H39-2415018.5+Mondphasen!$B$2/24 -> 2025-10-07T05:49:13.925 | D14: =Tabelle!H40-2415018.5+Mondphasen!$B$2/24 -> 2025-10-13T20:11:50.595
A15: =Tabelle!H41-2415018.5+Mondphasen!$B$2/24 -> 2025-10-21T14:26:52.901 | B15: =Tabelle!H42-2415018.5+Mondphasen!$B$2/24 -> 2025-10-29T18:22:36.173 | C15: =Tabelle!H43-2415018.5+Mondphasen!$B$2/24 -> 2025-11-05T15:21:15.826 | D15: =Tabelle!H44-2415018.5+Mondphasen!$B$2/24 -> 2025-11-12T07:28:43.735
A16: =Tabelle!H45-2415018.5+Mondphasen!$B$2/24 -> 2025-11-20T08:48:12.461 | B16: =Tabelle!H46-2415018.5+Mondphasen!$B$2/24 -> 2025-11-28T08:59:54.561 | C16: =Tabelle!H47-2415018.5+Mondphasen!$B$2/24 -> 2025-12-05T01:15:20.279 | D16: =Tabelle!H48-2415018.5+Mondphasen!$B$2/24 -> 2025-12-11T22:53:32.667
A17: =Tabelle!H49-2415018.5+Mondphasen!$B$2/24 -> 2025-12-20T03:44:35.240 | B17: =Tabelle!H50-2415018.5+Mondphasen!$B$2/24 -> 2025-12-27T21:11:06.544 | C17: =Tabelle!H51-2415018.5+Mondphasen!$B$2/24 -> 2026-01-03T12:03:54.095 | D17: =Tabelle!H52-2415018.5+Mondphasen!$B$2/24 -> 2026-01-10T17:49:10.327
A18: =Tabelle!H53-2415018.5+Mondphasen!$B$2/24 -> 2026-01-18T21:53:38.343 | B18: =Tabelle!H54-2415018.5+Mondphasen!$B$2/24 -> 2026-01-26T06:49:53.353 | C18: =Tabelle!H55-2415018.5+Mondphasen!$B$2/24 -> 2026-02-02T00:10:58.065 | D18: =Tabelle!H56-2415018.5+Mondphasen!$B$2/24 -> 2026-02-09T14:43:19.490
A22: Neumond | B22: erstes Viertel | C22: Vollmond | D22: letztes Viertel | G22: Vollmond
A23: =TRUNC(A5) -> 2024-12-31 | B23: =TRUNC(B5) -> 2025-01-07 | C23: 2025-01-14 | D23: 2025-01-21 | F23: O | G23: =C23 -> 45671 | H23: l
A24: =TRUNC(A6) -> 2025-01-29 | B24: 2025-02-05 | C24: 2025-02-12 | D24: 2025-02-20 | G24: 45700 | H24: l
A25: =TRUNC(A7) -> 2025-02-28 | B25: 2025-03-06 | C25: 2025-03-14 | D25: 2025-03-22 | G25: 45730 | H25: l
A26: =TRUNC(A8) -> 2025-03-29 | B26: 2025-04-05 | C26: 2025-04-13 | D26: 2025-04-21 | G26: 45760 | H26: l
A27: =TRUNC(A9) -> 2025-04-27 | B27: 2025-05-04 | C27: 2025-05-12 | D27: 2025-05-20 | G27: 45789 | H27: l
A28: =TRUNC(A10) -> 2025-05-27 | B28: 2025-06-03 | C28: 2025-06-11 | D28: 2025-06-18 | G28: 45819 | H28: l
A29: =TRUNC(A11) -> 2025-06-25 | B29: 2025-07-02 | C29: 2025-07-10 | D29: 2025-07-18 | G29: =C29 -> 45848 | H29: l
A30: =TRUNC(A12) -> 2025-07-24 | B30: 2025-08-01 | C30: 2025-08-09 | D30: 2025-08-16 | G30: 45878 | H30: l
A31: =TRUNC(A13) -> 2025-08-23 | B31: 2025-08-31 | C31: 2025-09-07 | D31: 2025-09-14 | G31: 45907 | H31: l
A32: =TRUNC(A14) -> 2025-09-21 | B32: 2025-09-30 | C32: 2025-10-07 | D32: 2025-10-13 | G32: 45937 | H32: l
A33: =TRUNC(A15) -> 2025-10-21 | B33: 2025-10-29 | C33: 2025-11-05 | D33: 2025-11-12 | G33: 45966 | H33: l
A34: =TRUNC(A16) -> 2025-11-20 | B34: 2025-11-28 | C34: 2025-12-05 | D34: 2025-12-11 | G34: 45996 | H34: l
A35: =TRUNC(A17) -> 2025-12-20 | B35: 2025-12-27 | C35: 2026-01-03 | D35: 2026-01-10 | G35: 46025 | H35: l
A36: =TRUNC(A18) -> 2026-01-18 | B36: 2026-01-26 | C36: 2026-02-02 | D36: 2026-02-09 | G36: =C36 -> 46055 | H36: l

Sheet Tabelle
A1: =Mondphasen!B1 -> 2025 | B1: 0 | C1: =INT((A1-2000)*12.3685)+B1 -> 309 | D1: =2451550.09766+29.530588861*C1 -> 2460675.05 | E1: =(2.5534+29.1053567*C1)*PI()/180 -> 157.0117153 | F1: =(201.5643+385.81693528*C1)*PI()/180 -> 2084.254692 | G1: =(160.7108+390.67050284*C1)*PI()/180 -> 2109.717281 | H1: =-0.4072*SIN(F1)+0.17241*SIN(E1)+0.01608*SIN(2*F1)+0.01039*SIN(2*G1)+0.00739*SIN(F1-E1)-0.00514*SIN(F1+E1)+0.00208*SIN(2*E1)-0.00111*SIN(F1-2*G1)+D1 -> 2460675.437
A2: =A1 -> 2025 | B2: 0.25 | C2: 309.25 | D2: 2460682.432 | E2: 157.1387114 | F2: 2085.938136 | G2: 2111.421903 | H2: =-0.62801*SIN(F2)+0.17172*SIN(E2)-0.01183*SIN(F2+E2)+0.00862*SIN(2*F2)+0.00804*SIN(2*G2)+0.00454*SIN(F2-E2)+0.00204*SIN(2*E2)-0.0018*SIN(F2-2*G2)+D2+0.00306 -> 2460682.499
A3: =A2 -> 2025 | B3: 0.5 | C3: 309.5 | D3: 2460689.815 | E3: 157.2657074 | F3: 2087.62158 | G3: 2113.126524 | H3: =-0.40614*SIN(F3)+0.17302*SIN(E3)+0.01614*SIN(2*F3)+0.01043*SIN(2*G3)+0.00734*SIN(F3-E3)-0.00515*SIN(F3+E3)+0.00209*SIN(2*E3)-0.00111*SIN(F3-2*G3)+D3 -> 2460689.436
A4: =A3 -> 2025 | B4: 0.75 | C4: 309.75 | D4: 2460697.198 | E4: 157.3927035 | F4: 2089.305024 | G4: 2114.831146 | H4: =-0.62801*SIN(F4)+0.17172*SIN(E4)-0.01183*SIN(F4+E4)+0.00862*SIN(2*F4)+0.00804*SIN(2*G4)+0.00454*SIN(F4-E4)+0.00204*SIN(2*E4)-0.0018*SIN(F4-2*G4)+D4-0.00306 -> 2460697.354
A5: =A1+0.08 -> 2025.08 | B5: 0 | C5: 310 | D5: 2460704.58 | E5: 157.5196996 | F5: 2090.988468 | G5: 2116.535768 | H5: =-0.4072*SIN(F5)+0.17241*SIN(E5)+0.01608*SIN(2*F5)+0.01039*SIN(2*G5)+0.00739*SIN(F5-E5)-0.00514*SIN(F5+E5)+0.00208*SIN(2*E5)-0.00111*SIN(F5-2*G5)+D5 -> 2460705.027
A6: =A5 -> 2025.08 | B6: 0.25 | C6: 310.25 | D6: 2460711.963 | E6: 157.6466957 | F6: 2092.671912 | G6: 2118.240389 | H6: =-0.62801*SIN(F6)+0.17172*SIN(E6)-0.01183*SIN(F6+E6)+0.00862*SIN(2*F6)+0.00804*SIN(2*G6)+0.00454*SIN(F6-E6)+0.00204*SIN(2*E6)-0.0018*SIN(F6-2*G6)+D6+0.00306 -> 2460711.837
A7: =A6 -> 2025.08 | B7: 0.5 | C7: 310.5 | D7: 2460719.346 | E7: 157.7736917 | F7: 2094.355356 | G7: 2119.945011 | H7: =-0.40614*SIN(F7)+0.17302*SIN(E7)+0.01614*SIN(2*F7)+0.01043*SIN(2*G7)+0.00734*SIN(F7-E7)-0.00515*SIN(F7+E7)+0.00209*SIN(2*E7)-0.00111*SIN(F7-2*G7)+D7 -> 2460719.081
A8: =A7 -> 2025.08 | B8: 0.75 | C8: 310.75 | D8: 2460726.728 | E8: 157.9006878 | F8: 2096.0388 | G8: 2121.649633 | H8: =-0.62801*SIN(F8)+0.17172*SIN(E8)-0.01183*SIN(F8+E8)+0.00862*SIN(2*F8)+0.00804*SIN(2*G8)+0.00454*SIN(F8-E8)+0.00204*SIN(2*E8)-0.0018*SIN(F8-2*G8)+D8-0.00306 -> 2460727.231
A9: =A5+0.08 -> 2025.16 | B9: 0 | C9: 311 | D9: 2460734.111 | E9: 158.0276839 | F9: 2097.722244 | G9: 2123.354254 | H9: =-0.4072*SIN(F9)+0.17241*SIN(E9)+0.01608*SIN(2*F9)+0.01039*SIN(2*G9)+0.00739*SIN(F9-E9)-0.00514*SIN(F9+E9)+0.00208*SIN(2*E9)-0.00111*SIN(F9-2*G9)+D9 -> 2460734.532
A10: =A9 -> 2025.16 | B10: 0.25 | C10: 311.25 | D10: 2460741.493 | E10: 158.15468 | F10: 2099.405688 | G10: 2125.058876 | H10: =-0.62801*SIN(F10)+0.17172*SIN(E10)-0.01183*SIN(F10+E10)+0.00862*SIN(2*F10)+0.00804*SIN(2*G10)+0.00454*SIN(F10-E10)+0.00204*SIN(2*E10)-0.0018*SIN(F10-2*G10)+D10+0.00306 -> 2460741.191
A11: =A10 -> 2025.16 | B11: 0.5 | C11: 311.5 | D11: 2460748.876 | E11: 158.2816761 | F11: 2101.089132 | G11: 2126.763498 | H11: =-0.40614*SIN(F11)+0.17302*SIN(E11)+0.01614*SIN(2*F11)+0.01043*SIN(2*G11)+0.00734*SIN(F11-E11)-0.00515*SIN(F11+E11)+0.00209*SIN(2*E11)-0.00111*SIN(F11-2*G11)+D11 -> 2460748.789
A12: =A11 -> 2025.16 | B12: 0.75 | C12: 311.75 | D12: 2460756.259 | E12: 158.4086721 | F12: 2102.772576 | G12: 2128.468119 | H12: =-0.62801*SIN(F12)+0.17172*SIN(E12)-0.01183*SIN(F12+E12)+0.00862*SIN(2*F12)+0.00804*SIN(2*G12)+0.00454*SIN(F12-E12)+0.00204*SIN(2*E12)-0.0018*SIN(F12-2*G12)+D12-0.00306 -> 2460756.982
A13: =A9+0.08 -> 2025.24 | B13: 0 | C13: 312 | D13: 2460763.641 | E13: 158.5356682 | F13: 2104.45602 | G13: 2130.172741 | H13: =-0.4072*SIN(F13)+0.17241*SIN(E13)+0.01608*SIN(2*F13)+0.01039*SIN(2*G13)+0.00739*SIN(F13-E13)-0.00514*SIN(F13+E13)+0.00208*SIN(2*E13)-0.00111*SIN(F13-2*G13)+D13 -> 2460763.957
A14: =A13 -> 2025.24 | B14: 0.25 | C14: 312.25 | D14: 2460771.024 | E14: 158.6626643 | F14: 2106.139464 | G14: 2131.877363 | H14: =-0.62801*SIN(F14)+0.17172*SIN(E14)-0.01183*SIN(F14+E14)+0.00862*SIN(2*F14)+0.00804*SIN(2*G14)+0.00454*SIN(F14-E14)+0.00204*SIN(2*E14)-0.0018*SIN(F14-2*G14)+D14+0.00306 -> 2460770.595
A15: =A14 -> 2025.24 | B15: 0.5 | C15: 312.5 | D15: 2460778.407 | E15: 158.7896604 | F15: 2107.822908 | G15: 2133.581984 | H15: =-0.40614*SIN(F15)+0.17302*SIN(E15)+0.01614*SIN(2*F15)+0.01043*SIN(2*G15)+0.00734*SIN(F15-E15)-0.00515*SIN(F15+E15)+0.00209*SIN(2*E15)-0.00111*SIN(F15-2*G15)+D15 -> 2460778.516
A16: =A15 -> 2025.24 | B16: 0.75 | C16: 312.75 | D16: 2460785.789 | E16: 158.9166564 | F16: 2109.506352 | G16: 2135.286606 | H16: =-0.62801*SIN(F16)+0.17172*SIN(E16)-0.01183*SIN(F16+E16)+0.00862*SIN(2*F16)+0.00804*SIN(2*G16)+0.00454*SIN(F16-E16)+0.00204*SIN(2*E16)-0.0018*SIN(F16-2*G16)+D16-0.00306 -> 2460786.57
A17: =A13+0.08 -> 2025.32 | B17: 0 | C17: 313 | D17: 2460793.172 | E17: 159.0436525 | F17: 2111.189796 | G17: 2136.991227 | H17: =-0.4072*SIN(F17)+0.17241*SIN(E17)+0.01608*SIN(2*F17)+0.01039*SIN(2*G17)+0.00739*SIN(F17-E17)-0.00514*SIN(F17+E17)+0.00208*SIN(2*E17)-0.00111*SIN(F17-2*G17)+D17 -> 2460793.315
A18: =A17 -> 2025.32 | B18: 0.25 | C18: 313.25 | D18: 2460800.555 | E18: 159.1706486 | F18: 2112.87324 | G18: 2138.695849 | H18: =-0.62801*SIN(F18)+0.17172*SIN(E18)-0.01183*SIN(F18+E18)+0.00862*SIN(2*F18)+0.00804*SIN(2*G18)+0.00454*SIN(F18-E18)+0.00204*SIN(2*E18)-0.0018*SIN(F18-2*G18)+D18+0.00306 -> 2460800.079
A19: =A18 -> 2025.32 | B19: 0.5 | C19: 313.5 | D19: 2460807.937 | E19: 159.2976447 | F19: 2114.556684 | G19: 2140.400471 | H19: =-0.40614*SIN(F19)+0.17302*SIN(E19)+0.01614*SIN(2*F19)+0.01043*SIN(2*G19)+0.00734*SIN(F19-E19)-0.00515*SIN(F19+E19)+0.00209*SIN(2*E19)-0.00111*SIN(F19-2*G19)+D19 -> 2460808.206
A20: =A19 -> 2025.32 | B20: 0.75 | C20: 313.75 | D20: 2460815.32 | E20: 159.4246407 | F20: 2116.240128 | G20: 2142.105092 | H20: =-0.62801*SIN(F20)+0.17172*SIN(E20)-0.01183*SIN(F20+E20)+0.00862*SIN(2*F20)+0.00804*SIN(2*G20)+0.00454*SIN(F20-E20)+0.00204*SIN(2*E20)-0.0018*SIN(F20-2*G20)+D20-0.00306 -> 2460816.001
A21: =A17+0.08 -> 2025.4 | B21: 0 | C21: 314 | D21: 2460822.703 | E21: 159.5516368 | F21: 2117.923571 | G21: 2143.809714 | H21: =-0.4072*SIN(F21)+0.17241*SIN(E21)+0.01608*SIN(2*F21)+0.01039*SIN(2*G21)+0.00739*SIN(F21-E21)-0.00514*SIN(F21+E21)+0.00208*SIN(2*E21)-0.00111*SIN(F21-2*G21)+D21 -> 2460822.629
A22: =A21 -> 2025.4 | B22: 0.25 | C22: 314.25 | D22: 2460830.085 | E22: 159.6786329 | F22: 2119.607015 | G22: 2145.514336 | H22: =-0.62801*SIN(F22)+0.17172*SIN(E22)-0.01183*SIN(F22+E22)+0.00862*SIN(2*F22)+0.00804*SIN(2*G22)+0.00454*SIN(F22-E22)+0.00204*SIN(2*E22)-0.0018*SIN(F22-2*G22)+D22+0.00306 -> 2460829.656
A23: =A22 -> 2025.4 | B23: 0.5 | C23: 314.5 | D23: 2460837.468 | E23: 159.805629 | F23: 2121.290459 | G23: 2147.218957 | H23: =-0.40614*SIN(F23)+0.17302*SIN(E23)+0.01614*SIN(2*F23)+0.01043*SIN(2*G23)+0.00734*SIN(F23-E23)-0.00515*SIN(F23+E23)+0.00209*SIN(2*E23)-0.00111*SIN(F23-2*G23)+D23 -> 2460837.824
A24: =A23 -> 2025.4 | B24: 0.75 | C24: 314.75 | D24: 2460844.851 | E24: 159.932625 | F24: 2122.973903 | G24: 2148.923579 | H24: =-0.62801*SIN(F24)+0.17172*SIN(E24)-0.01183*SIN(F24+E24)+0.00862*SIN(2*F24)+0.00804*SIN(2*G24)+0.00454*SIN(F24-E24)+0.00204*SIN(2*E24)-0.0018*SIN(F24-2*G24)+D24-0.00306 -> 2460845.306
A25: =A21+0.08 -> 2025.48 | B25: 0 | C25: 315 | D25: 2460852.233 | E25: 160.0596211 | F25: 2124.657347 | G25: 2150.628201 | H25: =-0.4072*SIN(F25)+0.17241*SIN(E25)+0.01608*SIN(2*F25)+0.01039*SIN(2*G25)+0.00739*SIN(F25-E25)-0.00514*SIN(F25+E25)+0.00208*SIN(2*E25)-0.00111*SIN(F25-2*G25)+D25 -> 2460851.94
A26: =A25 -> 2025.48 | B26: 0.25 | C26: 315.25 | D26: 2460859.616 | E26: 160.1866172 | F26: 2126.340791 | G26: 2152.332822 | H26: =-0.62801*SIN(F26)+0.17172*SIN(E26)-0.01183*SIN(F26+E26)+0.00862*SIN(2*F26)+0.00804*SIN(2*G26)+0.00454*SIN(F26-E26)+0.00204*SIN(2*E26)-0.0018*SIN(F26-2*G26)+D26+0.00306 -> 2460859.314
A27: =A26 -> 2025.48 | B27: 0.5 | C27: 315.5 | D27: 2460866.998 | E27: 160.3136133 | F27: 2128.024235 | G27: 2154.037444 | H27: =-0.40614*SIN(F27)+0.17302*SIN(E27)+0.01614*SIN(2*F27)+0.01043*SIN(2*G27)+0.00734*SIN(F27-E27)-0.00515*SIN(F27+E27)+0.00209*SIN(2*E27)-0.00111*SIN(F27-2*G27)+D27 -> 2460867.361
A28: =A27 -> 2025.48 | B28: 0.75 | C28: 315.75 | D28: 2460874.381 | E28: 160.4406093 | F28: 2129.707679 | G28: 2155.742065 | H28: =-0.62801*SIN(F28)+0.17172*SIN(E28)-0.01183*SIN(F28+E28)+0.00862*SIN(2*F28)+0.00804*SIN(2*G28)+0.00454*SIN(F28-E28)+0.00204*SIN(2*E28)-0.0018*SIN(F28-2*G28)+D28-0.00306 -> 2460874.528
A29: =A25+0.08 -> 2025.56 | B29: 0 | C29: 316 | D29: 2460881.764 | E29: 160.5676054 | F29: 2131.391123 | G29: 2157.446687 | H29: =-0.4072*SIN(F29)+0.17241*SIN(E29)+0.01608*SIN(2*F29)+0.01039*SIN(2*G29)+0.00739*SIN(F29-E29)-0.00514*SIN(F29+E29)+0.00208*SIN(2*E29)-0.00111*SIN(F29-2*G29)+D29 -> 2460881.3
A30: =A29 -> 2025.56 | B30: 0.25 | C30: 316.25 | D30: 2460889.146 | E30: 160.6946015 | F30: 2133.074567 | G30: 2159.151309 | H30: =-0.62801*SIN(F30)+0.17172*SIN(E30)-0.01183*SIN(F30+E30)+0.00862*SIN(2*F30)+0.00804*SIN(2*G30)+0.00454*SIN(F30-E30)+0.00204*SIN(2*E30)-0.0018*SIN(F30-2*G30)+D30+0.00306 -> 2460889.029
A31: =A30 -> 2025.56 | B31: 0.5 | C31: 316.5 | D31: 2460896.529 | E31: 160.8215976 | F31: 2134.758011 | G31: 2160.85593 | H31: =-0.40614*SIN(F31)+0.17302*SIN(E31)+0.01614*SIN(2*F31)+0.01043*SIN(2*G31)+0.00734*SIN(F31-E31)-0.00515*SIN(F31+E31)+0.00209*SIN(2*E31)-0.00111*SIN(F31-2*G31)+D31 -> 2460896.831
A32: =A31 -> 2025.56 | B32: 0.75 | C32: 316.75 | D32: 2460903.912 | E32: 160.9485937 | F32: 2136.441455 | G32: 2162.560552 | H32: =-0.62801*SIN(F32)+0.17172*SIN(E32)-0.01183*SIN(F32+E32)+0.00862*SIN(2*F32)+0.00804*SIN(2*G32)+0.00454*SIN(F32-E32)+0.00204*SIN(2*E32)-0.0018*SIN(F32-2*G32)+D32-0.00306 -> 2460903.719
A33: =A29+0.08 -> 2025.64 | B33: 0 | C33: 317 | D33: 2460911.294 | E33: 161.0755897 | F33: 2138.124899 | G33: 2164.265174 | H33: =-0.4072*SIN(F33)+0.17241*SIN(E33)+0.01608*SIN(2*F33)+0.01039*SIN(2*G33)+0.00739*SIN(F33-E33)-0.00514*SIN(F33+E33)+0.00208*SIN(2*E33)-0.00111*SIN(F33-2*G33)+D33 -> 2460910.755
A34: =A33 -> 2025.64 | B34: 0.25 | C34: 317.25 | D34: 2460918.677 | E34: 161.2025858 | F34: 2139.808343 | G34: 2165.969795 | H34: =-0.62801*SIN(F34)+0.17172*SIN(E34)-0.01183*SIN(F34+E34)+0.00862*SIN(2*F34)+0.00804*SIN(2*G34)+0.00454*SIN(F34-E34)+0.00204*SIN(2*E34)-0.0018*SIN(F34-2*G34)+D34+0.00306 -> 2460918.767
A35: =A34 -> 2025.64 | B35: 0.5 | C35: 317.5 | D35: 2460926.06 | E35: 161.3295819 | F35: 2141.491787 | G35: 2167.674417 | H35: =-0.40614*SIN(F35)+0.17302*SIN(E35)+0.01614*SIN(2*F35)+0.01043*SIN(2*G35)+0.00734*SIN(F35-E35)-0.00515*SIN(F35+E35)+0.00209*SIN(2*E35)-0.00111*SIN(F35-2*G35)+D35 -> 2460926.257
A36: =A35 -> 2025.64 | B36: 0.75 | C36: 317.75 | D36: 2460933.442 | E36: 161.456578 | F36: 2143.175231 | G36: 2169.379039 | H36: =-0.62801*SIN(F36)+0.17172*SIN(E36)-0.01183*SIN(F36+E36)+0.00862*SIN(2*F36)+0.00804*SIN(2*G36)+0.00454*SIN(F36-E36)+0.00204*SIN(2*E36)-0.0018*SIN(F36-2*G36)+D36-0.00306 -> 2460932.94
A37: =A33+0.08 -> 2025.72 | B37: 0 | C37: 318 | D37: 2460940.825 | E37: 161.583574 | F37: 2144.858675 | G37: 2171.08366 | H37: =-0.4072*SIN(F37)+0.17241*SIN(E37)+0.01608*SIN(2*F37)+0.01039*SIN(2*G37)+0.00739*SIN(F37-E37)-0.00514*SIN(F37+E37)+0.00208*SIN(2*E37)-0.00111*SIN(F37-2*G37)+D37 -> 2460940.331
A38: =A37 -> 2025.72 | B38: 0.25 | C38: 318.25 | D38: 2460948.208 | E38: 161.7105701 | F38: 2146.542119 | G38: 2172.788282 | H38: =-0.62801*SIN(F38)+0.17172*SIN(E38)-0.01183*SIN(F38+E38)+0.00862*SIN(2*F38)+0.00804*SIN(2*G38)+0.00454*SIN(F38-E38)+0.00204*SIN(2*E38)-0.0018*SIN(F38-2*G38)+D38+0.00306 -> 2460948.497
A39: =A38 -> 2025.72 | B39: 0.5 | C39: 318.5 | D39: 2460955.59 | E39: 161.8375662 | F39: 2148.225563 | G39: 2174.492904 | H39: =-0.40614*SIN(F39)+0.17302*SIN(E39)+0.01614*SIN(2*F39)+0.01043*SIN(2*G39)+0.00734*SIN(F39-E39)-0.00515*SIN(F39+E39)+0.00209*SIN(2*E39)-0.00111*SIN(F39-2*G39)+D39 -> 2460955.659
A40: =A39 -> 2025.72 | B40: 0.75 | C40: 318.75 | D40: 2460962.973 | E40: 161.9645623 | F40: 2149.909007 | G40: 2176.197525 | H40: =-0.62801*SIN(F40)+0.17172*SIN(E40)-0.01183*SIN(F40+E40)+0.00862*SIN(2*F40)+0.00804*SIN(2*G40)+0.00454*SIN(F40-E40)+0.00204*SIN(2*E40)-0.0018*SIN(F40-2*G40)+D40-0.00306 -> 2460962.258
A41: =A37+0.08 -> 2025.8 | B41: 0 | C41: 319 | D41: 2460970.356 | E41: 162.0915583 | F41: 2151.592451 | G41: 2177.902147 | H41: =-0.4072*SIN(F41)+0.17241*SIN(E41)+0.01608*SIN(2*F41)+0.01039*SIN(2*G41)+0.00739*SIN(F41-E41)-0.00514*SIN(F41+E41)+0.00208*SIN(2*E41)-0.00111*SIN(F41-2*G41)+D41 -> 2460970.019
A42: =A41 -> 2025.8 | B42: 0.25 | C42: 319.25 | D42: 2460977.738 | E42: 162.2185544 | F42: 2153.275895 | G42: 2179.606768 | H42: =-0.62801*SIN(F42)+0.17172*SIN(E42)-0.01183*SIN(F42+E42)+0.00862*SIN(2*F42)+0.00804*SIN(2*G42)+0.00454*SIN(F42-E42)+0.00204*SIN(2*E42)-0.0018*SIN(F42-2*G42)+D42+0.00306 -> 2460978.182
A43: =A42 -> 2025.8 | B43: 0.5 | C43: 319.5 | D43: 2460985.121 | E43: 162.3455505 | F43: 2154.959339 | G43: 2181.31139 | H43: =-0.40614*SIN(F43)+0.17302*SIN(E43)+0.01614*SIN(2*F43)+0.01043*SIN(2*G43)+0.00734*SIN(F43-E43)-0.00515*SIN(F43+E43)+0.00209*SIN(2*E43)-0.00111*SIN(F43-2*G43)+D43 -> 2460985.056
A44: =A43 -> 2025.8 | B44: 0.75 | C44: 319.75 | D44: 2460992.503 | E44: 162.4725466 | F44: 2156.642783 | G44: 2183.016012 | H44: =-0.62801*SIN(F44)+0.17172*SIN(E44)-0.01183*SIN(F44+E44)+0.00862*SIN(2*F44)+0.00804*SIN(2*G44)+0.00454*SIN(F44-E44)+0.00204*SIN(2*E44)-0.0018*SIN(F44-2*G44)+D44-0.00306 -> 2460991.728
A45: =A41+0.08 -> 2025.88 | B45: 0 | C45: 320 | D45: 2460999.886 | E45: 162.5995426 | F45: 2158.326226 | G45: 2184.720633 | H45: =-0.4072*SIN(F45)+0.17241*SIN(E45)+0.01608*SIN(2*F45)+0.01039*SIN(2*G45)+0.00739*SIN(F45-E45)-0.00514*SIN(F45+E45)+0.00208*SIN(2*E45)-0.00111*SIN(F45-2*G45)+D45 -> 2460999.783
A46: =A45 -> 2025.88 | B46: 0.25 | C46: 320.25 | D46: 2461007.269 | E46: 162.7265387 | F46: 2160.00967 | G46: 2186.425255 | H46: =-0.62801*SIN(F46)+0.17172*SIN(E46)-0.01183*SIN(F46+E46)+0.00862*SIN(2*F46)+0.00804*SIN(2*G46)+0.00454*SIN(F46-E46)+0.00204*SIN(2*E46)-0.0018*SIN(F46-2*G46)+D46+0.00306 -> 2461007.792
A47: =A46 -> 2025.88 | B47: 0.5 | C47: 320.5 | D47: 2461014.651 | E47: 162.8535348 | F47: 2161.693114 | G47: 2188.129877 | H47: =-0.40614*SIN(F47)+0.17302*SIN(E47)+0.01614*SIN(2*F47)+0.01043*SIN(2*G47)+0.00734*SIN(F47-E47)-0.00515*SIN(F47+E47)+0.00209*SIN(2*E47)-0.00111*SIN(F47-2*G47)+D47 -> 2461014.469
A48: =A47 -> 2025.88 | B48: 0.75 | C48: 320.75 | D48: 2461022.034 | E48: 162.9805309 | F48: 2163.376558 | G48: 2189.834498 | H48: =-0.62801*SIN(F48)+0.17172*SIN(E48)-0.01183*SIN(F48+E48)+0.00862*SIN(2*F48)+0.00804*SIN(2*G48)+0.00454*SIN(F48-E48)+0.00204*SIN(2*E48)-0.0018*SIN(F48-2*G48)+D48-0.00306 -> 2461021.371
A49: =A45+0.08 -> 2025.96 | B49: 0 | C49: 321 | D49: 2461029.417 | E49: 163.1075269 | F49: 2165.060002 | G49: 2191.53912 | H49: =-0.4072*SIN(F49)+0.17241*SIN(E49)+0.01608*SIN(2*F49)+0.01039*SIN(2*G49)+0.00739*SIN(F49-E49)-0.00514*SIN(F49+E49)+0.00208*SIN(2*E49)-0.00111*SIN(F49-2*G49)+D49 -> 2461029.573
A50: =A49 -> 2025.96 | B50: 0.25 | C50: 321.25 | D50: 2461036.799 | E50: 163.234523 | F50: 2166.743446 | G50: 2193.243742 | H50: =-0.62801*SIN(F50)+0.17172*SIN(E50)-0.01183*SIN(F50+E50)+0.00862*SIN(2*F50)+0.00804*SIN(2*G50)+0.00454*SIN(F50-E50)+0.00204*SIN(2*E50)-0.0018*SIN(F50-2*G50)+D50+0.00306 -> 2461037.299
A51: =A50 -> 2025.96 | B51: 0.5 | C51: 321.5 | D51: 2461044.182 | E51: 163.3615191 | F51: 2168.42689 | G51: 2194.948363 | H51: =-0.40614*SIN(F51)+0.17302*SIN(E51)+0.01614*SIN(2*F51)+0.01043*SIN(2*G51)+0.00734*SIN(F51-E51)-0.00515*SIN(F51+E51)+0.00209*SIN(2*E51)-0.00111*SIN(F51-2*G51)+D51 -> 2461043.919
A52: =A51 -> 2025.96 | B52: 0.75 | C52: 321.75 | D52: 2461051.565 | E52: 163.4885152 | F52: 2170.110334 | G52: 2196.652985 | H52: =-0.62801*SIN(F52)+0.17172*SIN(E52)-0.01183*SIN(F52+E52)+0.00862*SIN(2*F52)+0.00804*SIN(2*G52)+0.00454*SIN(F52-E52)+0.00204*SIN(2*E52)-0.0018*SIN(F52-2*G52)+D52-0.00306 -> 2461051.159
A53: =A49+0.08 -> 2026.04 | B53: 0 | C53: 322 | D53: 2461058.947 | E53: 163.6155112 | F53: 2171.793778 | G53: 2198.357607 | H53: =-0.4072*SIN(F53)+0.17241*SIN(E53)+0.01608*SIN(2*F53)+0.01039*SIN(2*G53)+0.00739*SIN(F53-E53)-0.00514*SIN(F53+E53)+0.00208*SIN(2*E53)-0.00111*SIN(F53-2*G53)+D53 -> 2461059.329
A54: =A53 -> 2026.04 | B54: 0.25 | C54: 322.25 | D54: 2461066.33 | E54: 163.7425073 | F54: 2173.477222 | G54: 2200.062228 | H54: =-0.62801*SIN(F54)+0.17172*SIN(E54)-0.01183*SIN(F54+E54)+0.00862*SIN(2*F54)+0.00804*SIN(2*G54)+0.00454*SIN(F54-E54)+0.00204*SIN(2*E54)-0.0018*SIN(F54-2*G54)+D54+0.00306 -> 2461066.701
A55: =A54 -> 2026.04 | B55: 0.5 | C55: 322.5 | D55: 2461073.713 | E55: 163.8695034 | F55: 2175.160666 | G55: 2201.76685 | H55: =-0.40614*SIN(F55)+0.17302*SIN(E55)+0.01614*SIN(2*F55)+0.01043*SIN(2*G55)+0.00734*SIN(F55-E55)-0.00515*SIN(F55+E55)+0.00209*SIN(2*E55)-0.00111*SIN(F55-2*G55)+D55 -> 2461073.424
A56: =A55 -> 2026.04 | B56: 0.75 | C56: 322.75 | D56: 2461081.095 | E56: 163.9964995 | F56: 2176.84411 | G56: 2203.471471 | H56: =-0.62801*SIN(F56)+0.17172*SIN(E56)-0.01183*SIN(F56+E56)+0.00862*SIN(2*F56)+0.00804*SIN(2*G56)+0.00454*SIN(F56-E56)+0.00204*SIN(2*E56)-0.0018*SIN(F56-2*G56)+D56-0.00306 -> 2461081.03
